{"text_format":"1","workbook":"xlsx","n_sheets":1,"sheets":["SES"],"not_rendered":{"charts":0,"images":1,"macros":1,"external_links":0,"defined_names":4,"comments":1,"pivot_tables":0},"unopened":[],"bounds":{"document_bytes":16777216,"sheet_cells":100000,"rows_first":2000,"rows_last":500,"rows_between":2000,"halvings":0,"cell_chars":16384,"cell_head_chars":4096},"cells_cut":0,"cells_raw":0,"read":"whole","date_system":"1900"}

{"sheet":"SES","index":0,"n_rows":1063,"n_cols":31,"rows_kept":1063,"cut":false,"hidden":false,"merged":[[2,5,2,22],[0,0,0,30],[1,0,1,30],[3,4,4,4],[2,0,2,4],[2,23,2,30],[1061,0,1061,4],[3,0,4,0],[3,1,4,1],[3,2,4,2],[3,3,4,3]]}
["Saarländischer Tischfußball Verband e.V."]
["Spieler-Einsatzstatistik Verbandsrunde 2026"]
["Stand Datenerfassung Spielberichte: 21.06.2026, 09:22",null,null,null,null,"Vorrunde",null,null,null,null,null,null,null,null,null,null,null,null,null,null,null,null,null,"Playoffspiele / DGP + Relegation"]
["Lfd.\nNr","Pass-\nnr.","Name","Vorname","Verein","1. Spieltag","2. Spieltag","3. Spieltag","4. Spieltag","5. Spieltag","6. Spieltag","7. Spieltag","8. Spieltag","9. Spieltag","10. Spieltag","11. Spieltag","12. Spieltag","13. Spieltag","14. Spieltag","15. Spieltag","16. Spieltag","17. Spieltag","18. Spieltag","19. Spieltag","20. Spieltag","21. Spieltag","22. Spieltag","23. Spieltag","24. Spieltag","25. Spieltag","26. Spieltag"]
[null,null,null,null,null,"2026-02-06","2026-02-20","2026-02-27","2026-03-06","2026-03-13","2026-04-10","2026-05-08","2026-05-15","2026-05-22","2026-05-29","2026-06-05","2026-06-12","2026-06-19","2026-06-26","2026-08-14","2026-08-21","2026-08-28","2026-09-04","2026-09-18","2026-09-25","2026-10-23","2026-10-30","2026-11-13","2026-11-20","2026-11-28","2026-11-28"]
[]
[1,1,"Schmidt","Joachim","TFC Marpingen","VL",null,null,"VL","VL","VL","VL","VL","VL","VL","VL","VL","VL"]
[2,2,"Haben","Helmut","TFC Marpingen","VL","VL","VL","VL","VL","VL","VL","VL","VL","VL","VL","VL","VL"]
[3,4,"Recktenwald","Lothar","TFC Marpingen",null,null,null,null,null,null,"VL","VL",null,"VL","VL","VL","VL"]
[4,6,"Urhahn","Lothar","TFF Marpingen",null,"BN","BN","BN",null,"BN","BN",null,"BN","BN","BN","BN","BN"]
[5,9,"Kauth","Eckhard","TFC Braddock Burbach","LL,1","LL,1","LL,1","LL,1","LL,1",null,"LL,1",null,"LL,1","LL,1","LL,1","LL,1","LL,1"]
[6,13,"Lang","Horst","Gut Stubb Neunkirchen","BS",null,null,"BS","BS","BS","BS",null,"BS","BS","BS","BS"]
[7,14,"Uhlemann","Claus","Gut Stubb Neunkirchen","BS","BS","BS","BS","BS","BS","BS",null,"BS","BS","BS","BS","BS"]
[8,18,"Lambrecht","Lothar","Gut Stubb Neunkirchen","BS","BS","BS","BS","BS","BS","BS",null,"BS","BS","BS","BS","BS"]
[9,19,"Arend","Peter","SG Spiesen","LL,1","LL,1","LL,1","LL,1","LL,1","LL,1","LL,1","LL,1","LL,1",null,"LL,1","LL,1"]
[10,29,"Holers","Peter","SG Spiesen","BS,2","BS,2","BS,2","BS,2","BS,2","BS,2","BS,2","BS,2","BS,2","BS,2",null,"BS,2"]
[11,31,"Bautz","Edmund","TFC Hühnerfeld","BS,1","BS,1","BS,1","BS,1","BS,1","BS,1","BS,1","BS,1","BS,1","BS,1",null,null,"BS,1"]
[12,32,"Schu","Rudi","TFC Riegelsberg","LL,1","KN,2","KN,2","KN,2","KN,2","KN,2",null,"LL,1",null,"KN,2","KN,2","KN,2","KN,2"]
[13,39,"Donato","Orazio","TFC Riegelsberg","KN,2","KN,2","KN,2","LL,1","KN,2",null,null,"KN,2","KN,2",null,"KN,2","KN,2","KN,2"]
[14,47,"Salerno","Francesco","TFC Braddock Burbach","VL,2","VL,2","VL,2","VL,2","VL,2","VL,2","VL,2","VL,2","VL,2","VL,2",null,"VL,2","VL,2"]
[15,56,"Del Fabro","Michael","RC Wiesbach",null,"LL","LL",null,"LL","LL","LL","LL","LL",null,null,null,"LL"]
[16,62,"Speicher","Rainer","TFC Riegelsberg","KN,2","KN,2","KN,2","KN,2",null,"KN,2",null,"KN,2","KN,2","KN,2",null,"KN,2","KN,2"]
[17,91,"Bard","Klaus-Dieter","TFC Theley","VL",null,"VL","VL","VL","VL",null,"VL",null,"VL",null,"VL"]
[18,94,"Gratz","Volker","TFC Theley",null,"VL","VL","VL","VL",null,"VL","VL","VL","VL",null,"VL","VL"]
[19,96,"Holz","Siegfried","TFC Theley","VL","VL","VL",null,null,"VL","VL",null,"VL","VL",null,"VL"]
[20,97,"Johann","Klaus-Peter","TFC Theley","VL","VL","VL","VL",null,"VL","VL","VL",null,"VL",null,"VL","VL"]
[21,101,"Seebald","Christoph","TFC Marpingen","VL","VL",null,null,"VL","VL","VL","VL","VL","VL","VL","VL","VL"]
[22,103,"Scheid","Uwe","TFC Theley","VL","VL","VL","VL","VL","VL","VL","VL","VL","VL",null,"VL","VL"]
[23,107,"Wiesen","Hans Jürgen","TFF Marpingen","BN","BN","BN","BN",null,"BN","BN","BN","BN","BN","BN","BN","BN"]
[24,108,"Zimmer","Bernd","TFC Theley",null,"VL","VL","VL","VL","VL","VL","VL","VL","VL"]
[25,114,"Hoyer","Wolfgang","TFC Dynamo Neunkirchen","KS","KS","KS","KS","KS","KS","KS","KS","KS","KS","KS","KS","KS"]
[26,115,"Huwig","Michael","TFC FriBi",null,null,"BS","BS","BS",null,null,"BS","BS","BS",null,"BS","BS"]
[27,116,"Leibrock","Jürgen","TFF Bexbach","KS","KS","KS","KS","KS","KS","KS","KS","KS","KS","KS"]
[28,118,"Pütz","Thomas","TFC FriBi",null,"BS","BS",null,"BS","BS","BS","BS","BS","BS","BS","BS","BS"]
[29,120,"Zentz","Martin","TFC FriBi",null,null,null,"BS","BS",null,"BS",null,"BS","BS",null,"BS","BS"]
[30,121,"Backes","Jörg","TFF Marpingen","BN",null,"BN",null,"BN",null,"BN","BN",null,null,"BN","BN","BN"]
[31,125,"Fuchs","German","TFF Marpingen","BN",null,null,null,null,null,"BN",null,null,null,null,"BN","BN"]
[32,136,"Weller","Hans Jürgen","TFK Schwalbach","BN","BN","BN","BN","BN","BN"]
[33,165,"Brendel","Helmut","TFC Heusweiler",null,null,null,"LL","LL","LL","LL","LL",null,"LL","LL","LL"]
[34,166,"Brendel","Herbert","Kickers Neunkirchen","KS","KS","KS","KS","KS","KS","KS","KS",null,"KS",null,"KS","KS",null,"KS"]
[35,177,"Klauk","Bernd","SG Spiesen","BS,2","BS,2","BS,2","BS,2","BS,2",null,"BS,2","BS,2","BS,2","BS,2","BS,2","BS,2","BS,2"]
[36,183,"Kuhrt","Peter","OTC Ottweiler",null,null,null,null,"KS,2","KS,2","KS,2","KS,2",null,"KS,2",null,"KS,2","KS,2"]
[37,185,"Cornelius","Claus","OTC Ottweiler",null,"LL,1","LL,1","LL,1","LL,1","LL,1","LL,1","LL,1","LL,1","LL,1",null,"LL,1","LL,1"]
[38,191,"Steinmetz","Bernd","TFC Lautenbach","KS,2","KS,2","KS,2","KS,2","KS,2","KS,2","KS,2","KS,2","KS,2",null,"KS,2","KS,2","KS,2"]
[39,197,"Cornelius","Josef","OTC Ottweiler","LL,1","LL,1","LL,1","LL,1","LL,1","LL,1","LL,1","LL,1","LL,1","LL,1",null,null,"LL,1"]
[40,207,"Kuc","Werner","TFC Lautenbach","VL,1","VL,1","VL,1","VL,1","VL,1","VL,1","VL,1",null,"VL,1","VL,1","VL,1","VL,1","VL,1"]
[41,208,"Hammel","Dietmar","TFC St. Wendel","KN","KN","KN","KN","KN",null,"KN","KN",null,"KN","KN","KN","KN"]
[42,215,"Peters","Peter","SG Spiesen",null,null,null,null,null,"BS,2","BS,2","BS,2","BS,2","BS,2","BS,2","BS,2","BS,2"]
[43,226,"Ludes","Friedel","Kickers Neunkirchen",null,null,null,null,null,null,"KS"]
[44,232,"Becker","Alex","TFC Ludweiler","VL","VL","VL","VL","VL","VL","VL",null,"VL","VL",null,null,"VL"]
[45,234,"Berndt","Markus","TFC Ludweiler","VL","VL","VL","VL",null,"VL","VL","VL","VL","VL","VL","VL","VL"]
[46,235,"Dörr","Helmut","TFC Ludweiler","VL",null,null,null,"VL","VL","VL","VL","VL","VL","VL","VL","VL"]
[47,254,"Becker","Hans Jürgen","Kickers Neunkirchen",null,"KS",null,"KS","KS","KS","KS","KS",null,"KS",null,"KS","KS"]
[48,256,"Bitzel","Thomas","TFC Lautenbach",null,"KS,2"]
[49,271,"Reinermann","Erik","SG Spiesen","LL,1","LL,1",null,null,null,"LL,1","LL,1",null,"LL,1",null,"LL,1","LL,1","LL,1"]
[50,272,"Reinermann","Frank","SG Spiesen","BS,2",null,"LL,1","LL,1"]
[51,273,"Thiel","Dominik","Gut Stubb Neunkirchen","BS","BS","BS","BS","BS","BS","BS",null,"BS","BS","BS","BS","BS"]
[52,274,"Limburg","Michael","TFC Illingen","VL,1","VL,1","VL,1","VL,1","VL,1",null,"VL,1","VL,1","VL,1","VL,1","VL,1","VL,1","VL,1"]
[53,276,"Lutz","Sven","Kickers Neunkirchen",null,"KS","KS",null,null,null,null,"KS","KS","KS"]
[54,278,"Braun","Ralf","Borussia Neunkirchen",null,null,null,null,null,null,null,null,null,null,null,"VL","VL"]
[55,286,"Forsch","Horst","TFG Neunkirchen","KS",null,"KS","KS","KS","KS","KS","KS","KS","KS","KS","KS","KS"]
[56,295,"Drumm","Martin","TFF Burbach","LL","LL","LL","LL","LL","LL","LL","LL","LL",null,"LL","LL","LL"]
[57,298,"Haas","Herbert","TFC Blau Rot Ensdorf","BN","BN","BN","BN","BN","BN","BN","BN","BN","BN","BN","BN","BN"]
[58,308,"Hubertus","Elmar","TFC Marpingen","VL","VL","VL","VL","VL","VL","VL","VL","VL","VL","VL","VL","VL"]
[59,311,"Hinsberger","Hubert","TFC Bliesen",null,"KN,3",null,null,"KN,3","KN,3","KN,3","KN,3","KN,3",null,"KN,3","KN,3","KN,3"]
[60,317,"Haupert","Ralf","TFC Bliesen","BN,2","BN,2","BN,2",null,"BN,2","BN,2","BN,2","BN,2","BN,2",null,"BN,2","BN,2","BN,2"]
[61,323,"Georg","Frank","SG Spiesen","LL,1","LL,1","LL,1","LL,1","LL,1","LL,1","LL,1","LL,1","LL,1",null,"LL,1","LL,1","LL,1"]
[62,333,"Backes","Rainer","TFC Hühnerfeld","BS,1","BS,1","BS,1","BS,1","BS,1","BS,1","BS,1","BS,1","BS,1","BS,1","BS,1","BS,1","BS,1"]
[63,334,"Brück","Hans-Joachim","TFC Hühnerfeld","KS,2","BS,1","BS,1","KS,2","KS,2","BS,1","KS,2","BS,1",null,"KS,2","BS,1","KS,2","KS,2"]
[64,336,"Bucher","Heinz","TFC Hühnerfeld",null,"BS,1","BS,1","BS,1","BS,1","BS,1",null,"BS,1","BS,1","BS,1","BS,1","BS,1","BS,1"]
[65,339,"Messemer","Gerald","TFC Hühnerfeld",null,null,null,null,"KS,2","KS,2","KS,2","KS,2",null,null,"KS,2","KS,2"]
[66,340,"Nemenich","Wolfgang","TFC Hühnerfeld","KS,2","KS,2","KS,2","KS,2","KS,2","KS,2","KS,2","KS,2","KS,2","KS,2","KS,2","KS,2","KS,2"]
[67,343,"Rumpf","Dieter","TFC Hühnerfeld",null,null,"KS,2",null,"KS,2","KS,2","KS,2","KS,2","KS,2",null,"KS,2","KS,2","KS,2"]
[68,356,"Kappel","Dieter","Gut Stubb Neunkirchen","BS","BS","BS","BS","BS","BS","BS",null,"BS"]
[69,367,"Bär","Franz-Josef","SG Köllerbach","BN","BN","BN","BN","BN","BN","BN","BN","BN","BN","BN","BN","BN"]
[70,369,"Darm","Dirk","SG Köllerbach","BN","BN","BN","BN","BN","BN","BN","BN","BN","BN","BN","BN","BN"]
[71,377,"Wahlster","Hans-Jürgen","TFC Braddock Burbach","VL,2","VL,2",null,"VL,2","VL,2",null,null,"VL,2","VL,2"]
[72,384,"Busse","Dieter","RC Hüttigweiler","KS","KS","KS","KS","KS","KS","KS","KS","KS","KS","KS","KS","KS"]
[73,396,"Schroth","Hans Jürgen","TFC Roden",null,null,null,null,null,null,null,null,null,null,"BN,2",null,"BN,2"]
[74,401,"Müller","Wolfgang","RC Hüttigweiler","KS","KS","KS","KS","KS","KS","KS","KS","KS",null,"KS","KS"]
[75,402,"Schmolke","Roland","TFC Heusweiler",null,null,null,null,"LL"]
[76,420,"Wilbert","Udo","OTC Ottweiler","LL,1","LL,1","KS,2",null,"KS,2",null,"LL,1",null,null,null,null,null,"KS,2"]
[77,429,"Sitzmann","Rainer","OTC Ottweiler","LL,1","LL,1","LL,1","LL,1","LL,1","LL,1","LL,1"]
[78,446,"Lawall","Wolfgang","OTC Ottweiler","LL,1",null,null,null,null,null,"LL,1",null,null,null,null,"LL,1"]
[79,463,"Schorr","Harry","TFC Frankenholz","BS","BS","BS","BS","BS","BS","BS","BS",null,"BS","BS","BS","BS"]
[80,468,"Schorr","Lothar","TFC Frankenholz","BS","BS","BS","BS","BS","BS","BS","BS",null,"BS","BS","BS","BS"]
[81,501,"Klos","Guido","TFC Marpingen","VL","VL","VL","VL",null,"VL","VL","VL","VL","VL","VL"]
[82,521,"Gard","Hans","TFC Marpingen",null,null,"VL"]
[83,535,"Haag","Klaus","TFC Heinitz/Elversberg","VL,1","VL,1","VL,1","VL,1","VL,1","VL,1","VL,1",null,null,"VL,1",null,"VL,1","VL,1"]
[84,539,"Böffel","Lothar","TFC Ommersheim","BS","BS","BS",null,"BS","BS","BS","BS","BS","BS","BS","BS","BS"]
[85,540,"Elgas","Volker","TFC Hühnerfeld","KS,2","KS,2","KS,2","KS,2","KS,2","KS,2","KS,2","KS,2","KS,2","KS,2","BS,1","KS,2","KS,2"]
[86,545,"Boussonville","Frank","TFC Heinitz/Elversberg","KS,2","KS,2","KS,2","KS,2","KS,2","KS,2","KS,2",null,"KS,2","KS,2","KS,2","KS,2","KS,2"]
[87,565,"Feldes","Carlheinz","SG Spiesen",null,"BS,2",null,null,"BS,2",null,null,null,"BS,2",null,"BS,2",null,"BS,2"]
[88,573,"Wirtz","Roland","TFC FriBi","BS","BS",null,"BS","BS","BS","BS","BS","BS",null,"BS"]
[89,594,"Scholl","Toni","TFF Marpingen",null,null,null,null,null,null,null,"BN"]
[90,626,"Millot","Birgit","TFC Heinitz/Elversberg","KS,2","KS,2","KS,2","KS,2",null,"KS,2","KS,2",null,null,null,"KS,2","KS,2","KS,2"]
[91,641,"Brinner","Thomas","TFC St. Wendel",null,"KN"]
[92,647,"Theobald","Stefan","TFG Neunkirchen",null,null,null,null,"KS","KS",null,null,null,null,"KS","KS","KS"]
[93,649,"Murer","Frank","TFC FriBi","BS","BS","BS",null,null,null,"BS",null,"BS","BS","BS","BS","BS"]
[94,655,"Conrad","Ralf","Gut Stubb Neunkirchen","BS","BS","BS","BS","BS","BS","BS",null,"BS","BS","BS","BS","BS"]
[95,664,"Klemann","Michael","TFC Heinitz/Elversberg",null,null,null,null,null,null,"KS,2",null,null,"KS,2"]
[96,666,"Schätzel","Horst","TFC Heinitz/Elversberg",null,null,null,"KS,2"]
[97,673,"Michael","Stefan","TFG Neunkirchen",null,null,null,null,null,null,null,null,"KS","KS","KS"]
[98,686,"Gerber","Klaus-Peter","RC Wustweiler","BN",null,"BN","BN","BN","BN","BN","BN","BN","BN","BN","BN","BN"]
[99,687,"Hellbrück","Karl-Heinz","RC Wustweiler","BN","BN","BN","BN","BN","BN","BN","BN","BN","BN","BN","BN","BN"]
[100,690,"Zimmer","Horst","TFC Illingen",null,null,null,null,null,null,"VL,1","VL,1","VL,1","VL,1",null,"VL,1","VL,1"]
[101,691,"Bund","Werner","RC Wustweiler",null,"BN","BN","BN","BN","BN",null,null,"BN","BN","BN","BN","BN"]
[102,699,"Brill","Werner","RC Wustweiler","BN","BN","BN",null,null,"BN","BN","BN","BN","BN","BN","BN","BN"]
[103,704,"Von der Thüsen","Pia","TFC Blau Rot Ensdorf",null,"BN",null,"BN",null,null,null,"BN","BN","BN"]
[104,705,"Von der Thüsen","Dieter","TFC Blau Rot Ensdorf","BN","BN","BN","BN","BN","BN","BN","BN","BN","BN","BN","BN","BN"]
[105,706,"Gompert","Ralf","TFC Blau Rot Ensdorf",null,"BN",null,null,null,null,null,null,null,"BN","BN","BN","BN"]
[106,709,"Sturmer","Hans-Günther","TFC Roden","LL,1","LL,1","LL,1","LL,1","LL,1","LL,1","LL,1","LL,1","LL,1","LL,1","LL,1","LL,1","LL,1"]
[107,713,"Schmitt","Manfred","TFC Blau Rot Ensdorf","BN","BN","BN","BN","BN","BN","BN","BN",null,"BN","BN",null,"BN"]
[108,714,"Contes","Michael","TFC Blau Rot Ensdorf","BN",null,"BN","BN","BN","BN","BN","BN","BN",null,"BN","BN","BN"]
[109,722,"Fiorino","Antonio","TFC Roden","LL,1","LL,1",null,null,null,"LL,1","LL,1"]
[110,731,"Klein","Alfred","TFC Limbach",null,"BN",null,null,"BN",null,"BN","BN","BN","BN","BN","BN","BN"]
[111,732,"Jungblut","Walter","TFC Limbach","BN"]
[112,733,"Lösch","Willi","TFC Limbach","BN",null,"BN","BN",null,"BN",null,"BN",null,"BN","BN","BN","BN"]
[113,741,"Schmid","Christian","TFC Heusweiler","LL","LL","LL","LL","LL",null,"LL","LL","LL"]
[114,754,"Schanno","Bodo","TFC Blau Rot Ensdorf","BN","BN","BN","BN","BN","BN","BN","BN","BN","BN","BN","BN","BN"]
[115,756,"Nawrotzki","Frank","TFC Roden","LL,1","LL,1","LL,1","LL,1","LL,1","LL,1","LL,1","LL,1","LL,1","LL,1","LL,1","LL,1","LL,1"]
[116,769,"Meyer","Jürgen","TFC Riegelsberg","LL,1","LL,1","LL,1","LL,1","LL,1","LL,1","LL,1","LL,1","LL,1",null,null,"LL,1","LL,1"]
[117,770,"Micka","Ralf","TFC Braddock Burbach","VL,2",null,null,"VL,2","VL,2","VL,2","VL,2",null,"VL,2","VL,2",null,"VL,2","VL,2"]
[118,790,"Lehnhof","Ralf","SG Köllerbach","BN","BN","BN","BN","BN","BN","BN","BN","BN","BN","BN","BN","BN"]
[119,837,"Klein","Detlef","TFC Heusweiler","LL","LL","LL","LL","LL","LL","LL","LL","LL","LL","LL","LL","LL"]
[120,845,"Bastuck","Theo","RC Wiesbach","LL","LL","LL","LL",null,null,"LL"]
[121,847,"Hoffmann","Stefan","RC Wiesbach","LL",null,"LL","LL","LL","LL","LL",null,null,null,"LL","LL"]
[122,848,"Kartes","Stefan","RC Wiesbach","LL","LL","LL","LL","LL","LL",null,"LL","LL","LL","LL","LL","LL"]
[123,852,"Maurer","Thomas","RC Wiesbach",null,null,null,null,null,null,null,null,null,"LL",null,null,"LL"]
[124,857,"Michely","Josef","RC Wiesbach","LL","LL","LL","LL","LL","LL","LL","LL","LL","LL",null,null,"LL"]
[125,858,"Meiser","Eugen","RC Wiesbach","LL","LL","LL","LL","LL","LL","LL","LL","LL",null,"LL","LL","LL"]
[126,872,"Heckmann","Gunter","TFK Schwalbach","BN","BN","BN","BN","BN","BN","BN","BN","BN","BN","BN",null,"BN"]
[127,880,"Prediger","Heinz","SG Köllerbach","BN","BN","BN","BN","BN","BN","BN","BN","BN",null,"BN","BN","BN"]
[128,884,"Schönecker","Thomas","TFC Bliesen","LL,1","LL,1","LL,1","LL,1",null,"LL,1","LL,1","LL,1","LL,1","LL,1","LL,1","LL,1","LL,1"]
[129,886,"Schneider","Frank","TFC FriBi","BS","BS","BS","BS","BS","BS",null,"BS","BS","BS","BS","BS","BS"]
[130,892,"Kasper","Joachim","TFC FriBi","BS","BS","BS","BS","BS","BS","BS","BS","BS","BS","BS","BS","BS"]
[131,893,"Nauerz","Ralf","TFC FriBi","BS","BS",null,"BS","BS","BS","BS","BS",null,null,"BS","BS"]
[132,894,"Pflieger","Markus","TFC Heinitz/Elversberg","KS,2",null,null,"KS,2",null,null,null,"VL,1","VL,1",null,"KS,2","KS,2","KS,2"]
[133,898,"Dörr","Peter","SG Köllerbach","BN","BN","BN","BN",null,null,"BN","BN","BN","BN","BN","BN","BN"]
[134,901,"Krieger","Klaus","TFC Riegelsberg","KN,2",null,"KN,2","KN,2","KN,2","KN,2",null,"KN,2","KN,2",null,"KN,2"]
[135,903,"Ottenthal","Axel","TFC Riegelsberg","KN,2","LL,1","LL,1","KN,2","KN,2","KN,2",null,"KN,2","LL,1",null,null,null,"LL,1"]
[136,911,"Flaccus","Jörg","SG Köllerbach","BN","BN","BN","BN","BN","BN","BN","BN","BN","BN","BN","BN","BN"]
[137,915,"Mast","Karl","TFC Rappweiler","VL",null,"VL"]
[138,933,"Primm","Petra","Gut Stubb Neunkirchen","BS","BS","BS","BS",null,"BS","BS",null,"BS","BS","BS","BS","BS"]
[139,936,"Kuntz","Erwin","Kickers Neunkirchen","KS","KS","KS","KS","KS","KS","KS","KS","KS","KS",null,"KS","KS",null,"KS"]
[140,938,"Sick","Rudolf","OTC Ottweiler","KS,2","KS,2",null,"KS,2",null,null,"KS,2","KS,2","KS,2","KS,2",null,"KS,2","KS,2"]
[141,945,"Sick","Jürgen","TFC Frankenholz","BS","BS",null,null,null,"BS","BS","BS","BS","BS","BS",null,"BS"]
[142,946,"Sick","Bernd","OTC Ottweiler","KS,2","KS,2","KS,2","KS,2","KS,2","KS,2","KS,2","LL,1",null,"LL,1",null,"KS,2"]
[143,956,"Hoffmann","Klaus","TFC Heinitz/Elversberg","VL,1","VL,1","VL,1","VL,1","VL,1","VL,1",null,null,null,"VL,1","VL,1","VL,1","VL,1"]
[144,968,"Krug","Robert","TFC Braddock Burbach","VL,2","VL,2","VL,2","VL,2","VL,2","VL,2","VL,2",null,null,null,null,"VL,2"]
[145,969,"Forsch","Karl-Heinz","TFC Dynamo Neunkirchen","KS","KS","KS","KS","KS","KS","KS","KS","KS","KS","KS","KS","KS"]
[146,971,"Peuser","Dieter","TFC Theley","VL","VL","VL","VL","VL","VL",null,null,null,null,null,"VL","VL"]
[147,983,"Klauk","Klaus","SG Spiesen","BS,2","BS,2","BS,2","BS,2","BS,2","BS,2","BS,2","BS,2","BS,2","BS,2","BS,2","BS,2","BS,2"]
[148,984,"Braun","Berthold","Gut Stubb Neunkirchen","BS","BS","BS","BS","BS","BS","BS",null,"BS","BS","BS","BS","BS"]
[149,999,"Boncher","Heinz","TFC Ludweiler","VL","VL","VL","VL","VL","VL","VL","VL","VL","VL","VL","VL","VL"]
[150,1017,"Horbach","Horst","Borussia Neunkirchen","VL","VL",null,"VL","VL","VL","VL",null,null,"VL","VL",null,"VL"]
[151,1019,"Schmelzer","Helmut","TFC Hühnerfeld","BS,1","BS,1","BS,1","BS,1","BS,1","BS,1","BS,1","BS,1","BS,1","BS,1","BS,1","BS,1","BS,1"]
[152,1020,"Heib","Wolfgang","Gut Stubb Neunkirchen",null,"BS",null,null,null,null,null,null,null,null,"BS"]
[153,1021,"Dumont","Albert","Gut Stubb Neunkirchen","BS",null,"BS",null,"BS",null,null,null,null,"BS"]
[154,1041,"Spier","Norbert","TFC FriBi","BS","BS",null,"BS","BS",null,"BS","BS","BS",null,"BS",null,"BS"]
[155,1051,"Noll","Herbert","TFC Ommersheim","BS",null,null,"BS","BS","BS","BS","BS","BS","BS","BS","BS"]
[156,1058,"Loskill","Ortwin","TFC Hühnerfeld","KS,2","KS,2","KS,2","KS,2",null,null,null,null,"KS,2","KS,2"]
[157,1066,"Blankenmayer","Dirk","TFC Heinitz/Elversberg","KS,2","KS,2","KS,2","KS,2",null,"KS,2","KS,2",null,null,"KS,2","KS,2"]
[158,1083,"Dorscheid","Olaf","TFC Illingen","KN,2",null,"KN,2","KN,2","KN,2","KN,2","KN,2","KN,2","KN,2","KN,2",null,null,"KN,2"]
[159,1129,"Klee","Uwe","TFC Blau Rot Ensdorf","BN","BN","BN","BN","BN","BN","BN",null,"BN","BN","BN","BN","BN"]
[160,1130,"Maas","Fredi","TFC Roden",null,null,null,null,null,null,null,"LL,1",null,"LL,1"]
[161,1141,"Henrici","Nikolaus","TFC Riegelsberg","KN,2","KN,2","KN,2","LL,1","KN,2","KN,2",null,"KN,2","KN,2","KN,2","KN,2","KN,2","LL,1"]
[162,1144,"Großmann","Norbert","TFC Morscholz","KN","KN",null,"KN","KN","KN","KN",null,"KN","KN"]
[163,1175,"Peter","Stephan","TFC Braddock Burbach",null,"VL,2",null,null,"VL,2","VL,2","VL,2","VL,2","VL,2","VL,2",null,"VL,2","VL,2"]
[164,1180,"Schäfer","Ralf","RC Hüttigweiler","KS","KS","KS","KS","KS","KS","KS",null,"KS","KS","KS","KS","KS"]
[165,1184,"Großmann","Jörg","TFC Morscholz","KN","KN",null,"KN","KN","KN","KN"]
[166,1190,"Brill","Bernd","TFF Marpingen","BN","BN","BN",null,"BN","BN",null,"BN",null,"BN","BN",null,"BN"]
[167,1191,"Grausam","Bernd","TFF Marpingen","BN",null,"BN","BN","BN",null,null,null,"BN",null,"BN","BN","BN"]
[168,1202,"Zimmer","Manfred","RC Hüttigweiler","KS","KS",null,"KS",null,null,"KS","KS","KS",null,"KS","KS"]
[169,1211,"Grewenig","Jörg","TFC Riegelsberg","LL,1","LL,1","LL,1",null,"LL,1",null,"LL,1","LL,1","LL,1",null,null,"LL,1"]
[170,1214,"Leist","Manfred","TFF Marpingen","BN","BN","BN",null,null,null,"BN",null,"BN","BN","BN",null,"BN"]
[171,1218,"Bäsel","Dieter","TFC Lautenbach","VL,1","VL,1","VL,1","VL,1",null,"VL,1","VL,1","VL,1","VL,1","VL,1","VL,1","VL,1","VL,1"]
[172,1249,"Pinter","Markus","SG Spiesen",null,"LL,1","LL,1","LL,1","LL,1","LL,1","LL,1","LL,1",null,null,null,null,"LL,1"]
[173,1252,"Müller","Horst","TFC FriBi",null,"BS","BS",null,"BS","BS","BS","BS",null,"BS",null,"BS","BS"]
[174,1266,"Thielen","Roland","SG Köllerbach","BN","BN","BN","BN","BN",null,"BN",null,null,"BN","BN","BN","BN"]
[175,1267,"Kern","Peter","TFC FriBi","BS","BS","BS","BS","BS","BS",null,null,"BS","BS","BS","BS","BS"]
[176,1268,"Ließfeld","Gerald","Kickers Neunkirchen","KS","KS","KS",null,null,null,null,null,null,null,null,null,null,null,"KS"]
[177,1273,"Zaffino","Vinzenzo","SG Spiesen",null,"BS,2","BS,2",null,null,null,"BS,2","BS,2","BS,2","BS,2","BS,2","BS,2","BS,2"]
[178,1276,"Hupperich","Uwe","OTC Ottweiler","KS,2","KS,2","KS,2","KS,2",null,"KS,2","KS,2",null,"KS,2","KS,2",null,"KS,2"]
[179,1278,"Hennes","Markus","Kickers Neunkirchen","KS",null,"KS","KS","KS","KS",null,"KS","KS","KS",null,null,"KS",null,"KS"]
[180,1312,"Jäckel","Thomas","TFC Limbach","BN",null,"BN","BN","BN","BN","BN","BN","BN"]
[181,1319,"Schmitt","Johann","TFC Wahlen",null,"KN","KN",null,"KN","KN","KN","KN","KN","KN","KN","KN"]
[182,1337,"Haag","Ludmilla","TFC Heinitz/Elversberg",null,null,"KS,2","KS,2","KS,2","KS,2","KS,2",null,"KS,2","KS,2","KS,2","KS,2","KS,2"]
[183,1344,"Weiland","Thomas","Kickers Neunkirchen","KS","KS","KS","KS","KS","KS","KS","KS","KS",null,null,"KS","KS",null,"KS"]
[184,1349,"Teschner","Edgar","RC Hüttigweiler",null,"KS","KS","KS","KS","KS","KS","KS","KS","KS","KS","KS","KS"]
[185,1352,"Woll","Stefan","TFC Schiffweiler","BS","BS",null,null,null,"BS","BS",null,null,"BS","BS"]
[186,1368,"Graf","Mathias","TFC Theley","VL","VL",null,"VL","VL","VL","VL","VL","VL","VL",null,"VL","VL"]
[187,1376,"Caspar","Werner","RC Tholey","BN","BN",null,"BN"]
[188,1389,"Molter","Karl-Horst","TFC Theley","VL","VL",null,null,"VL","VL","VL","VL","VL","VL",null,"VL","VL"]
[189,1398,"Schäfer","Dietmar","RC Berschweiler",null,"KN","KN","KN",null,"KN","KN","KN","KN","KN"]
[190,1415,"Maas","Conny","RC Wiesbach","LL","LL","LL","LL",null,null,"LL","LL",null,"LL","LL","LL"]
[191,1416,"Groß","Karl","TFC Heusweiler","LL","LL","LL","LL","LL","LL","LL","LL","LL","LL","LL",null,"LL"]
[192,1423,"Marx","Stefan","TFC Lautenbach","KS,2","KS,2","KS,2","KS,2","KS,2","KS,2",null,"KS,2","KS,2","KS,2","KS,2","KS,2","KS,2"]
[193,1425,"Lang","Harald","TFC Lautenbach","KS,2",null,"KS,2","KS,2",null,"KS,2","KS,2",null,"KS,2","KS,2",null,"KS,2","KS,2"]
[194,1437,"Wolter","Alexander","TFC Bliesen","LL,1","LL,1","LL,1","LL,1","LL,1","LL,1","LL,1","LL,1",null,"LL,1","LL,1","LL,1","LL,1"]
[195,1439,"Braun","Christian","SG Spiesen","LL,1","LL,1","LL,1","LL,1","LL,1","LL,1","LL,1","LL,1","LL,1",null,"LL,1","LL,1","LL,1"]
[196,1442,"Oberle","Jürgen","TFC Heinitz/Elversberg","VL,1","VL,1","VL,1","VL,1","VL,1","VL,1","VL,1","VL,1",null,"VL,1","VL,1","VL,1","VL,1"]
[197,1453,"Thiel","Thomas","TFC Hühnerfeld","BS,1",null,"BS,1","BS,1","BS,1","BS,1","BS,1","BS,1","BS,1","BS,1","BS,1","BS,1","BS,1"]
[198,1456,"Beye","Ralf","TFC Ludweiler","VL","VL",null,null,null,"VL",null,null,"VL","VL","VL","VL","VL"]
[199,1477,"Grausam","Ludwin","TFF Marpingen","BN","BN","BN","BN","BN",null,null,null,"BN","BN","BN","BN","BN"]
[200,1486,"Lerner","Andreas","Kickers Neunkirchen","KS","KS","KS","KS",null,"KS","KS","KS","KS",null,null,"KS","KS",null,"KS"]
[201,1507,"Schönecker","Christian","TFC Bliesen","LL,1","LL,1","LL,1",null,null,"LL,1","LL,1","LL,1","LL,1",null,null,"LL,1","LL,1"]
[202,1509,"Barth","Markus","TFC Ludweiler",null,"VL","VL","VL","VL","VL","VL","VL",null,null,null,null,"VL"]
[203,1516,"Schreiner","Alfred","TFC Illingen","VL,1","VL,1","VL,1","VL,1","VL,1",null,"VL,1","VL,1","VL,1","VL,1","VL,1","VL,1","VL,1"]
[204,1532,"Gratz","Uwe","TFC Theley",null,"VL","VL","VL",null,"VL","VL","VL","VL","VL",null,null,"VL"]
[205,1541,"Müller","Jochen","TFC Schiffweiler","BS","BS","BS","BS",null,"BS","BS","BS",null,"BS","BS","BS","BS"]
[206,1558,"Kraus","Oliver","RC Berschweiler",null,null,null,null,null,null,null,"KN",null,null,null,"KN","KN"]
[207,1561,"Puhl","Lothar","TFC Hühnerfeld",null,"KS,2","KS,2","KS,2","KS,2","KS,2","KS,2","KS,2","KS,2",null,"KS,2","KS,2","KS,2"]
[208,1585,"Müller","Ralf","TFC Ludweiler",null,null,null,null,"VL"]
[209,1621,"Recktenwald","Theo","RC Berschweiler","KN","KN",null,"KN",null,null,"KN","KN","KN",null,"KN","KN","KN"]
[210,1649,"Herrmann","Bruno","TFC Limbach",null,null,null,null,null,null,null,"BN"]
[211,1694,"Wagner","Markus","TFF Marpingen",null,"BN","BN","BN","BN","BN","BN","BN","BN","BN","BN","BN","BN"]
[212,1720,"Schramm","Andreas","RC Berschweiler","KN","KN","KN","KN",null,"KN",null,"KN",null,"KN","KN"]
[213,1763,"Hans","Bernd","TFC Marpingen","VL","VL","VL","VL","VL","VL","VL","VL","VL","VL","VL","VL","VL"]
[214,1772,"Recktenwald","Udo","TFF Marpingen","BN",null,null,"BN",null,"BN","BN",null,"BN","BN"]
[215,1778,"Altmeyer","Guido","TFC Ludweiler",null,null,"VL","VL",null,null,null,null,null,null,null,"VL"]
[216,1792,"Fuxius","Arnold","TFC Ludweiler",null,"VL","VL","VL","VL","VL","VL","VL","VL","VL","VL","VL","VL"]
[217,1803,"Dinger","Roman","TFC Hülzweiler/Saarwellingen","VL,2","VL,2","VL,2","VL,2","VL,2","VL,2","VL,2","VL,2","VL,2","VL,2","VL,2","VL,2","VL,2"]
[218,1831,"Leinenbach","Andreas","TFK Schwalbach","BN",null,null,"BN","BN","BN",null,null,null,null,null,null,"BN"]
[219,1838,"Feld","Bernd","TFC Hülzweiler/Saarwellingen","LL,1","LL,1","LL,1","LL,1","LL,1","LL,1","LL,1","LL,1","LL,1","LL,1","LL,1","LL,1","LL,1"]
[220,1853,"Rummler","Fred","TFG Neunkirchen","KS","KS","KS",null,"KS","KS"]
[221,1906,"Feidt","Frank","TFC Bliesen","BN,2",null,null,"BN,2","BN,2",null,null,null,"BN,2"]
[222,1918,"Maurer","Andreas","TFG Neunkirchen",null,"KS","KS","KS","KS","KS","KS","KS","KS","KS","KS","KS","KS"]
[223,1922,"Timpano","Salvatore","TFC Wiebelskirchen",null,null,null,null,null,null,null,null,"BS","BS","BS","BS"]
[224,1927,"Engstler","Stefan","TFC Roden","LL,1","LL,1","BN,2","LL,1","BN,2","BN,2","BN,2","BN,2","BN,2","BN,2","BN,2","BN,2"]
[225,1931,"Hautz","Stephan","Kickers Neunkirchen","KS","KS",null,"KS",null,"KS","KS","KS",null,"KS",null,"KS","KS",null,"KS"]
[226,1940,"Schräger","Terentius","OTC Ottweiler","KS,2","KS,2","KS,2","KS,2",null,"KS,2",null,"KS,2","KS,2","KS,2",null,"KS,2","KS,2"]
[227,1950,"Baumgärtner","Wolfgang","TFC Braddock Burbach","VL,2","VL,2","VL,2",null,null,null,"VL,2","VL,2","VL,2",null,null,null,"VL,2"]
[228,1991,"Hess","Jörg","TFC Marpingen","VL","VL",null,null,"VL","VL","VL",null,"VL","VL","VL","VL","VL"]
[229,2004,"Schuh","Jürgen","TFC Limbach",null,null,null,null,null,null,null,"BN",null,"BN","BN","BN"]
[230,2014,"Aggintus","Volker","TFC Morscholz",null,"KN",null,"KN",null,null,"KN",null,"KN",null,null,null,"KN"]
[231,2035,"Kuhn","Thomas","Borussia Neunkirchen",null,"VL","VL","VL","VL","VL","VL","VL"]
[232,2043,"Müller","Frank","SG Köllerbach",null,null,"BN","BN","BN","BN","BN",null,"BN","BN",null,"BN"]
[233,2051,"Schorr","Dirk","TFC Heinitz/Elversberg",null,"KS,2","KS,2","KS,2","KS,2","KS,2","KS,2",null,null,"KS,2","KS,2","KS,2","KS,2"]
[234,2055,"Becker","Frank","TFC Bliesen",null,null,null,"LL,1","LL,1","LL,1",null,"LL,1","LL,1","LL,1","LL,1","LL,1","LL,1"]
[235,2062,"Kraus","Guido","TFC Bliesen",null,null,null,null,null,null,null,"LL,1","KN,3",null,"KN,3"]
[236,2066,"Wagner","Jürgen","RC Tholey","BN","BN","BN","BN","BN","BN","BN","BN","BN","BN","BN","BN","BN"]
[237,2072,"Schedler","Bernd","RC Tholey",null,null,null,null,null,null,null,null,null,"BN","BN","BN"]
[238,2078,"Kreuz","Wolfgang","TFC Theley","VL","VL","VL","VL","VL","VL","VL","VL","VL","VL",null,"VL","VL"]
[239,2100,"Curto","Calogero","TFC FriBi","BS",null,null,"BS","BS","BS","BS",null,null,null,"BS",null,"BS"]
[240,2117,"Flaccus","Ingo","SG Köllerbach",null,null,null,"BN","BN","BN","BN",null,null,"BN","BN"]
[241,2120,"Backes","Ralf","RC Tholey","BN",null,null,null,"BN","BN","BN",null,null,null,"BN",null,"BN"]
[242,2129,"Wallacher","Helmut","OTC Ottweiler","KS,2","KS,2","KS,2","KS,2","KS,2","KS,2","KS,2","KS,2","KS,2"]
[243,2148,"Fries","Frank","TFC Bliesen","BN,2","BN,2","BN,2",null,"BN,2","BN,2","BN,2","BN,2",null,null,null,"BN,2","BN,2"]
[244,2162,"Schmidt","Stephan","TFC Braddock Burbach",null,null,"LL,1",null,"LL,1",null,null,"LL,1","LL,1","VL,2",null,"LL,1"]
[245,2201,"Schuster","Cornelia","TFC Heinitz/Elversberg","VL,1","VL,1","KS,2",null,"KS,2",null,"VL,1","VL,1","VL,1",null,"VL,1","VL,1","VL,1"]
[246,2211,"Sachse","Stefan","SG Spiesen","LL,1","LL,1","LL,1","LL,1","LL,1","LL,1","LL,1","LL,1","LL,1",null,"LL,1","LL,1","LL,1"]
[247,2212,"Mathieu","Michael","TFC Lautenbach","VL,1","VL,1","VL,1",null,"VL,1",null,"VL,1","VL,1","VL,1","VL,1",null,"VL,1"]
[248,2244,"Kuhl","Armin","RC Wustweiler",null,null,null,null,null,null,null,null,null,"BN"]
[249,2269,"Hoffmann","Gerd","TFC Riegelsberg","KN,2",null,"KN,2","KN,2",null,null,null,"KN,2","KN,2","KN,2",null,"KN,2","KN,2"]
[250,2316,"Coppola","Emanuele","RC Wustweiler","BN",null,"BN","BN","BN","BN","BN","BN","BN","BN","BN","BN","BN"]
[251,2331,"Müller","Roman","TFC FriBi","BS",null,null,null,"BS"]
[252,2332,"Neumann","Frank","TFC Lautenbach",null,"VL,1","VL,1","VL,1","VL,1","VL,1","VL,1","VL,1",null,"VL,1","VL,1","VL,1","VL,1"]
[253,2356,"Kuhn","Jürgen","TFC Morscholz","KN","KN",null,null,"KN"]
[254,2365,"Wolfanger","Rudolf","SG Spiesen","LL,1","LL,1","LL,1","LL,1",null,null,"LL,1","LL,1","LL,1",null,"LL,1","LL,1","LL,1"]
[255,2372,"Kutscher","Thomas","RC Wiesbach",null,"LL","LL","LL","LL","LL","LL","LL","LL","LL","LL",null,"LL"]
[256,2376,"Wagner","Michael","RC Berschweiler","KN",null,"KN",null,null,"KN","KN","KN",null,null,"KN","KN","KN"]
[257,2377,"Görgen","Andreas","TFC Morscholz","KN","KN",null,"KN","KN",null,null,null,null,"KN","KN",null,"KN"]
[258,2395,"Coppola","Antonio","TFC Hülzweiler/Saarwellingen","LL,1","LL,1","LL,1","LL,1","LL,1","LL,1","LL,1","LL,1","LL,1","LL,1","LL,1","LL,1","LL,1"]
[259,2396,"Theobald","Markus","Kickers Neunkirchen","KS","KS",null,"KS","KS","KS","KS","KS","KS","KS",null,null,"KS",null,"KS"]
[260,2407,"Saar","David","TFF Burbach","LL",null,"LL","LL","LL","LL","LL","LL","LL","LL",null,"LL","LL"]
[261,2410,"Rudolph","Roswitha","TFK Schwalbach","BN","BN","BN","BN",null,"BN","BN","BN","BN","BN","BN","BN","BN"]
[262,2424,"Schön","Michael","RC Schiffweiler","KS",null,"KS","KS","KS",null,"KS","KS","KS","KS","KS","KS","KS"]
[263,2433,"Dorscheid","Marco","TFF Marpingen",null,"BN","BN","BN",null,"BN",null,null,null,null,"BN","BN"]
[264,2438,"Bernarding","Joachim","TFC Theley","VL",null,null,null,"VL",null,"VL","VL","VL","VL",null,"VL"]
[265,2441,"Zimmer","Lothar","TFC Theley","VL",null,null,"VL","VL","VL",null,null,null,null,null,"VL","VL"]
[266,2444,"Kuhn","Peter","Borussia Neunkirchen",null,"VL",null,"VL","VL","VL","VL","VL",null,"VL",null,"VL"]
[267,2445,"Graus","Dirk","RC Wustweiler","BN",null,"BN","BN","BN",null,"BN","BN",null,null,"BN","BN","BN"]
[268,2464,"Theis","Dieter","TFC Ommersheim","BS","BS","BS","BS","BS","BS","BS","BS",null,"BS","BS","BS","BS"]
[269,2478,"Spaniol","Roland","RC Schiffweiler","KS","KS",null,"KS","KS","KS","KS","KS","KS",null,"KS","KS","KS",null,"KS"]
[270,2479,"Salm","Michael","RC Schiffweiler","KS","KS","KS","KS",null,"KS","KS","KS",null,"KS","KS","KS"]
[271,2491,"Glod","Rüdiger","TFC Illingen","KN,2",null,"KN,2","KN,2","KN,2","KN,2","KN,2","KN,2","KN,2","KN,2",null,null,"KN,2"]
[272,2508,"Berwanger","Markus","TFC Wiebelskirchen",null,"BS","BS",null,"BS","BS",null,"BS","BS","BS","BS","BS","BS"]
[273,2520,"Pulvermüller","Michael","Borussia Neunkirchen",null,"VL",null,null,null,null,null,null,null,null,null,"VL"]
[274,2549,"Becker","Uwe","TFF Marpingen",null,null,null,null,"BN","BN",null,null,"BN","BN"]
[275,2555,"Lempas","Anja","TFC Roden","BN,2",null,"BN,2",null,"BN,2","BN,2","BN,2","BN,2","BN,2","BN,2","BN,2","BN,2","BN,2"]
[276,2578,"Klein","Bodo","RC Wiesbach","LL",null,"LL",null,null,"LL","LL","LL","LL","LL","LL","LL"]
[277,2587,"Hoppe","Dirk","SG Köllerbach",null,null,"BN",null,"BN",null,null,null,"BN",null,null,null,"BN"]
[278,2592,"Schmitz","Karsten","TFC Braddock Burbach","LL,1","LL,1","LL,1","LL,1","LL,1","LL,1","LL,1","LL,1",null,"LL,1","LL,1","LL,1","LL,1"]
[279,2610,"Gerber","Volker","TFC FriBi","BS","BS","BS",null,"BS","BS","BS","BS","BS","BS",null,"BS"]
[280,2613,"Klein","Ralf","TFC Heusweiler","LL","LL","LL","LL","LL","LL","LL","LL","LL","LL","LL","LL","LL"]
[281,2616,"Leinenbach","Frank","TFC Hülzweiler/Saarwellingen","LL,1","LL,1",null,null,"LL,1",null,null,null,"LL,1",null,null,null,"LL,1"]
[282,2626,"Müller","Friedbert","SG Spiesen","BS,2","BS,2",null,"BS,2","BS,2","BS,2","BS,2","BS,2","BS,2",null,"BS,2","BS,2","BS,2"]
[283,2651,"Fischer","Bernd","RC Wustweiler","BN","BN","BN","BN","BN",null,null,null,"BN"]
[284,2652,"Herz","Frank","TFC Lautenbach","VL,1","VL,1","VL,1","VL,1","VL,1","VL,1",null,null,"VL,1","VL,1","VL,1"]
[285,2662,"Marx","Heiko","TFC Bliesen",null,null,null,null,null,null,"KN,3",null,"KN,3",null,"KN,3",null,"KN,3"]
[286,2691,"Bläs","Michael","RC Berschweiler",null,null,null,null,null,null,null,null,null,null,null,"KN"]
[287,2692,"Schock","Berthold","Gut Stubb Neunkirchen",null,null,null,null,null,"BS","BS",null,"BS",null,null,"BS"]
[288,2716,"Heldberg","Karl-Heinz","TFC Ludweiler","VL","VL","VL","VL","VL","VL","VL","VL","VL","VL","VL","VL","VL"]
[289,2717,"Morche","Hermann","RC Hüttigweiler",null,"KS",null,"KS","KS","KS","KS","KS","KS",null,"KS","KS","KS"]
[290,2719,"Urmoneit","Klaus","RC Wustweiler","BN","BN","BN",null,"BN","BN","BN","BN","BN","BN","BN","BN","BN"]
[291,2723,"Werner","Hans Joachim","Gut Stubb Neunkirchen",null,null,null,null,null,null,"BS",null,null,null,"BS","BS","BS"]
[292,2730,"Herz","Patrik","TFC Lautenbach",null,"KS,2",null,null,null,null,"KS,2",null,null,"KS,2","KS,2"]
[293,2757,"Schwan","Rene","TFC Illingen",null,null,"KN,2",null,"KN,2","KN,2"]
[294,2760,"Winter","Thorsten","TFK Schwalbach",null,null,"BN"]
[295,2794,"Meyer","Jürgen","TFC Rappweiler","VL","VL","VL","VL","VL",null,"VL","VL","VL","VL","VL","VL","VL"]
[296,2795,"Eberle","Peter","TFC Heusweiler","LL","LL","LL",null,"LL","LL","LL",null,"LL","LL","LL","LL"]
[297,2804,"Schuh","Armin","TFC Bliesen",null,null,"KN,3","KN,3","KN,3",null,"KN,3",null,null,null,null,null,"KN,3"]
[298,2811,"Klemm","Thilo","TFC Bliesen","BN,2","BN,2","BN,2","BN,2","BN,2",null,"BN,2",null,"BN,2","BN,2","BN,2","BN,2","BN,2"]
[299,2824,"Schmidt","Robert","TFC Dynamo Neunkirchen","KS","KS",null,"KS","KS","KS","KS","KS","KS","KS","KS","KS","KS"]
[300,2825,"Schmitt","Wolfgang","Borussia Neunkirchen","VL","VL","VL","VL","VL","VL","VL","VL",null,"VL","VL","VL","VL"]
[301,2834,"Günther","Roman","Borussia Neunkirchen","VL",null,"VL","VL","VL","VL","VL","VL",null,null,"VL","VL","VL"]
[302,2835,"Sroka","Markus","SG Spiesen","LL,1","LL,1","LL,1",null,"LL,1",null,"LL,1","LL,1","LL,1",null,"LL,1","LL,1","LL,1"]
[303,2851,"Becker","Dagmar","SG Köllerbach","BN","BN","BN","BN","BN","BN",null,"BN","BN","BN",null,"BN"]
[304,2857,"Dörr","Claudia","TFC Marpingen",null,"VL","VL","VL","VL","VL","VL","VL","VL",null,null,"VL","VL"]
[305,2859,"Wegmann","Bernd","TFC Bliesen",null,"KN,3","KN,3","KN,3","KN,3","KN,3","KN,3","KN,3",null,null,null,"KN,3","KN,3"]
[306,2877,"Kober","Jörg","Gut Stubb Neunkirchen","BS","BS","BS","BS","BS"]
[307,2878,"Vogel","Martin","TFC Illingen","VL,1","VL,1","VL,1","VL,1",null,null,"VL,1","VL,1","VL,1","VL,1","VL,1","VL,1","VL,1"]
[308,2880,"Groh","Markus","TFC Braddock Burbach",null,"VL,2","VL,2","VL,2",null,null,"VL,2","VL,2","VL,2","VL,2",null,"VL,2"]
[309,2884,"Loew","Benedikt","SG Köllerbach","BN","BN","BN","BN","BN","BN","BN","BN",null,null,"BN","BN","BN"]
[310,2908,"Stoffel","Frank","TFK Schwalbach","BN","BN",null,null,"BN","BN","BN","BN","BN","BN","BN","BN","BN"]
[311,2912,"Frey","Andreas","TFC Blau Rot Ensdorf","BN",null,"BN","BN",null,"BN","BN","BN","BN","BN",null,"BN"]
[312,2929,"Gabriel","Ulf","OTC Ottweiler","LL,1",null,"LL,1",null,"LL,1","LL,1","LL,1","LL,1",null,"LL,1",null,"LL,1"]
[313,2930,"Klein","Franz-Josef","TFC Riegelsberg","KN,2","KN,2","KN,2","LL,1","KN,2","KN,2",null,"KN,2","KN,2","KN,2","KN,2","KN,2","LL,1"]
[314,2934,"Tarillon","Paul","TFC Marpingen","VL",null,"VL","VL"]
[315,2938,"Messina","Giovanni","TFF Eppelborn","KN","KN","KN","KN","KN","KN","KN",null,null,null,"KN"]
[316,2943,"Klemann","Jörg","TFC Heinitz/Elversberg","KS,2","KS,2",null,null,null,null,"KS,2",null,"KS,2","KS,2","VL,1","KS,2","KS,2"]
[317,2944,"Bleymehl","Ralf","TFC Heinitz/Elversberg","VL,1","VL,1","VL,1",null,"VL,1",null,"VL,1",null,"VL,1","VL,1","VL,1","VL,1","VL,1"]
[318,2977,"Schmeer","Michael","TFC Braddock Burbach",null,null,null,null,null,null,null,null,null,"VL,2","LL,1",null,"LL,1"]
[319,2978,"Kiefer","Ralph","TFF Burbach","LL","LL","LL",null,"LL",null,"LL",null,null,"LL"]
[320,2986,"Spang","Dietmar","TFC Hühnerfeld","KS,2","KS,2","KS,2",null,"KS,2","KS,2",null,"KS,2","KS,2","KS,2","KS,2"]
[321,2993,"Kosar","Mehmet","TFC Braddock Burbach","VL,2","VL,2","VL,2","VL,2","VL,2","VL,2",null,"VL,2","VL,2","VL,2",null,"VL,2","VL,2"]
[322,3012,"Kutz","Michael","TFC Illingen","KN,2",null,null,"KN,2",null,"KN,2","KN,2",null,"KN,2","KN,2",null,"KN,2","KN,2"]
[323,3023,"Rupp","Klemens","TFC Ludweiler","VL"]
[324,3033,"Ingenbrand","Hans-Jürgen","Gut Stubb Neunkirchen","BS","BS","BS","BS","BS","BS",null,null,"BS",null,"BS","BS","BS"]
[325,3034,"Pfordt","Annerose","OTC Ottweiler","KS,2"]
[326,3043,"Glocker","Patrick","TFF Burbach","LL","LL","LL","LL","LL","LL","LL",null,"LL","LL","LL","LL","LL"]
[327,3048,"Ney","Werner","RC Wustweiler","BN","BN","BN","BN",null,"BN",null,null,"BN",null,"BN","BN","BN"]
[328,3055,"Müller","Frank","TFC Heinitz/Elversberg",null,"VL,1","VL,1","VL,1","VL,1","VL,1","VL,1","VL,1","VL,1",null,null,null,"VL,1"]
[329,3067,"Herzig","Michael","TFC Ludweiler","VL","VL","VL",null,"VL","VL","VL","VL","VL","VL","VL",null,"VL"]
[330,3070,"Köhl","Stefan","TFC Braddock Burbach","VL,2","VL,2","VL,2","VL,2","VL,2","VL,2","VL,2","VL,2","VL,2","VL,2",null,"VL,2","VL,2"]
[331,3072,"Treinen","Rüdiger","OTC Ottweiler","LL,1","LL,1","LL,1","LL,1","LL,1","LL,1","LL,1","LL,1","LL,1","LL,1",null,"LL,1","LL,1"]
[332,3074,"Schumacher","Christine","TFC Dynamo Neunkirchen",null,null,null,null,null,null,null,null,null,"KS","KS","KS","KS"]
[333,3092,"Braun","Thomas","TFC Heinitz/Elversberg",null,"VL,1","VL,1","VL,1",null,"VL,1","VL,1",null,null,"VL,1"]
[334,3110,"Günter","Josef","TFC FriBi","BS","BS","BS","BS","BS","BS",null,"BS","BS","BS","BS","BS","BS"]
[335,3111,"Günther","Heike","Borussia Neunkirchen","VL",null,null,"VL","VL",null,"VL",null,null,null,"VL","VL","VL"]
[336,3116,"Schulz","Peter","RC Schiffweiler","KS","KS","KS","KS","KS","KS","KS","KS","KS","KS","KS","KS","KS",null,"KS"]
[337,3123,"Kilian","Nico","TFC Dynamo Neunkirchen","KS","KS",null,"KS","KS",null,"KS","KS","KS","KS","KS","KS","KS"]
[338,3128,"Woll","Markus","RC Schiffweiler","KS","KS","KS",null,"KS","KS",null,null,"KS","KS","KS",null,null,null,"KS"]
[339,3130,"Kuhn","Wolfgang","RC Schiffweiler","KS","KS","KS",null,"KS","KS",null,null,"KS",null,"KS","KS","KS",null,"KS"]
[340,3140,"Stein","Heino","SG Spiesen","BS,2","BS,2","BS,2","BS,2","BS,2","BS,2",null,"BS,2",null,"BS,2","BS,2","BS,2","BS,2"]
[341,3143,"Schmidt","Jörg","SG Spiesen","LL,1","LL,1","LL,1","LL,1","LL,1","LL,1","LL,1","LL,1","LL,1",null,"LL,1","LL,1","LL,1"]
[342,3145,"Kuhn","Christof","RC Wustweiler","BN","BN",null,"BN","BN","BN","BN","BN","BN","BN","BN",null,"BN"]
[343,3150,"Schmidt","Rene","TFC Ommersheim","BS","BS","BS","BS"]
[344,3162,"Rumpf","Robert","TFC Hühnerfeld",null,"KS,2",null,"KS,2",null,"KS,2","KS,2","KS,2","KS,2",null,"KS,2","KS,2","KS,2"]
[345,3185,"Bayerlein","Edmund","TFG Namborn","BS","BS","BS","BS","BS","BS",null,"BS","BS","BS","BS","BS","BS"]
[346,3199,"Haag","Michael","TFC Heusweiler","LL","LL","LL","LL","LL","LL","LL","LL","LL","LL","LL","LL","LL"]
[347,3210,"Bohnenberger","Jürgen","RC Schiffweiler","KS","KS",null,"KS","KS","KS","KS","KS","KS",null,"KS","KS","KS",null,"KS"]
[348,3234,"Wettmann","Rainer","TFC Lautenbach",null,"KS,2",null,"KS,2","KS,2","KS,2"]
[349,3236,"Backes","Alexander","TFC Marpingen","VL","VL","VL",null,"VL","VL",null,"VL","VL","VL","VL","VL","VL"]
[350,3245,"Kuhn","Bernd","RC Schiffweiler","KS",null,"KS","KS","KS",null,"KS","KS","KS","KS","KS",null,"KS"]
[351,3247,"Mergenthaler","Günther","TFC Illingen","KN,2",null,"KN,2",null,null,"KN,2","KN,2","KN,2","KN,2",null,null,"KN,2"]
[352,3250,"Weber","Thomas","TFC Hülzweiler/Saarwellingen","VL,2","VL,2","VL,2","VL,2","VL,2","VL,2","VL,2","VL,2","VL,2","VL,2","VL,2","VL,2","VL,2"]
[353,3253,"Bienert","Jörg","SG Spiesen","LL,1","LL,1","LL,1","LL,1","LL,1","LL,1","LL,1","LL,1","LL,1",null,"LL,1"]
[354,3255,"Lessel","Mario","TFC Hülzweiler/Saarwellingen",null,"LL,1"]
[355,3268,"Backes","Daniel","RC Tholey","BN","BN","BN",null,null,"BN","BN",null,"BN","BN","BN",null,"BN"]
[356,3291,"Kuhn","Achim","RC Wustweiler","BN","BN","BN","BN","BN","BN","BN","BN","BN","BN","BN","BN","BN"]
[357,3303,"Weiland","Susanne","Kickers Neunkirchen","KS",null,"KS","KS","KS","KS","KS",null,"KS","KS",null,"KS","KS"]
[358,3305,"Rammo","Frank","TFC Hülzweiler/Saarwellingen","LL,1","LL,1",null,null,"LL,1","LL,1","LL,1","LL,1","LL,1",null,null,"LL,1"]
[359,3331,"Kraus","Jürgen","SG Spiesen","LL,1","LL,1","LL,1","LL,1","LL,1","LL,1",null,null,null,null,"BS,2","BS,2","BS,2"]
[360,3333,"Kunz","Jörg","TFC St. Wendel","KN","KN",null,"KN","KN",null,"KN","KN","KN",null,null,"KN","KN"]
[361,3341,"Didion","Patrick","TFC Braddock Burbach","LL,1","LL,1","LL,1","LL,1","LL,1","LL,1","LL,1","LL,1","LL,1","LL,1","LL,1","LL,1","LL,1"]
[362,3358,"Steinmann","Michael","TFG Namborn",null,null,null,null,"BS"]
[363,3372,"Blug","Carsten","Borussia Neunkirchen","VL",null,"VL","VL","VL","VL",null,null,null,null,"VL","VL","VL"]
[364,3426,"Mindermann","Lothar","SG Spiesen","BS,2","BS,2","BS,2","BS,2","BS,2","BS,2","BS,2",null,null,"BS,2","BS,2","BS,2","BS,2"]
[365,3433,"Presser","Markus","Borussia Neunkirchen","VL","VL","VL","VL","VL","VL","VL",null,null,"VL","VL",null,"VL"]
[366,3435,"Biehl","Armin","TFC Frankenholz","BS",null,"BS","BS","BS","BS","BS",null,null,"BS","BS"]
[367,3436,"Biehl","Patrick","Gut Stubb Neunkirchen",null,"BS","BS","BS","BS","BS","BS",null,"BS","BS","BS","BS","BS"]
[368,3441,"Bernd","Martin","TFC Lautenbach","VL,1",null,"VL,1","VL,1",null,"VL,1","VL,1","VL,1","VL,1","VL,1","VL,1",null,"VL,1"]
[369,3442,"Klees","Roland","TFC Bliesen","BN,2","BN,2","BN,2",null,"BN,2","BN,2","BN,2","BN,2","BN,2","BN,2","BN,2",null,"BN,2"]
[370,3469,"Gärtner","Michael","TFC Ommersheim","BS","BS","BS","BS","BS","BS","BS","BS","BS","BS","BS","BS","BS"]
[371,3504,"Becker","Klaus","TFC Heusweiler",null,null,null,"LL","LL","LL",null,null,"LL",null,"LL","LL","LL"]
[372,3508,"Laub","Markus","TFG Neunkirchen","KS","KS","KS","KS","KS","KS","KS","KS","KS","KS","KS","KS","KS"]
[373,3527,"Kaufmann","Peter","TFC Bliesen",null,null,null,null,null,"KN,3"]
[374,3528,"Leist","Sascha","TFC Bliesen",null,"KN,3","KN,3","KN,3",null,"KN,3","KN,3","KN,3",null,null,"KN,3","KN,3"]
[375,3529,"Albert","Hermann","TFC Bliesen","BN,2","BN,2","BN,2","BN,2","BN,2","BN,2","BN,2","BN,2",null,"BN,2"]
[376,3590,"Müller","Rüdiger","OTC Ottweiler","KS,2","KS,2","KS,2","KS,2",null,"KS,2","KS,2","KS,2","KS,2","KS,2",null,"KS,2","KS,2"]
[377,3597,"Berisha","Anja","TFG Namborn",null,"BS","BS","BS","BS"]
[378,3606,"Maass","Michael","TFC Schiffweiler","BS","BS","BS","BS","BS","BS","BS","BS",null,"BS","BS","BS","BS"]
[379,3612,"Löw","Markus","TFC Siersburg","BN","BN","BN","BN","BN","BN","BN","BN",null,"BN","BN"]
[380,3617,"Klein","Heiko","Kickers Neunkirchen",null,null,"KS","KS",null,"KS",null,"KS","KS","KS",null,"KS",null,null,"KS"]
[381,3639,"Bereswill","Ralf","TFC Hühnerfeld","BS,1","BS,1","BS,1","BS,1","BS,1","BS,1","BS,1","BS,1","BS,1","BS,1","BS,1","BS,1"]
[382,3643,"Becker","Thomas","TFC Limbach","BN","BN","BN","BN","BN","BN","BN","BN","BN","BN",null,"BN","BN"]
[383,3652,"Lösch","Tim","TFC Lautenbach","VL,1","VL,1","VL,1",null,"VL,1",null,null,null,"VL,1","VL,1","KS,2","VL,1","KS,2"]
[384,3678,"Blass","Michael","RC Hüttigweiler","KS"]
[385,3684,"Valela","Salvatore","TFF Marpingen",null,null,null,null,"BN",null,null,"BN"]
[386,3697,"Rupp","Christian","TFC Blau Rot Ensdorf","BN","BN","BN","BN","BN","BN","BN","BN","BN",null,null,"BN","BN"]
[387,3707,"Naumann","Toni","TFC Ludweiler","VL",null,"VL","VL","VL","VL","VL","VL","VL",null,"VL","VL","VL"]
[388,3720,"Schweig","Stefan","TFC Theley","VL","VL","VL","VL","VL","VL","VL","VL","VL",null,null,"VL","VL"]
[389,3728,"Schwalbach","Patric","TFC Hülzweiler/Saarwellingen","LL,1","LL,1","LL,1","LL,1","LL,1","LL,1","LL,1","LL,1","LL,1","LL,1","LL,1","LL,1","LL,1"]
[390,3733,"Haaß","Marco","TFC Bliesen","LL,1","LL,1","LL,1","LL,1","LL,1","LL,1","LL,1","LL,1","LL,1",null,null,"LL,1","LL,1"]
[391,3736,"Feit","Elmar","TFC Braddock Burbach","LL,1","LL,1",null,"LL,1","LL,1","LL,1","LL,1","LL,1","LL,1","LL,1",null,"LL,1","LL,1"]
[392,3744,"Kessler","Hans-Ralf","TFC Riegelsberg","LL,1","LL,1",null,null,"LL,1","LL,1","LL,1",null,"LL,1",null,null,"LL,1"]
[393,3754,"Ferreira","José","Borussia Neunkirchen","VL",null,"VL",null,null,"VL","VL","VL",null,"VL"]
[394,3755,"Rothfuchs","Patrick","TFC Illingen",null,null,"VL,1",null,"VL,1",null,null,null,null,null,"VL,1"]
[395,3760,"Lauer","Michael","TFC Heinitz/Elversberg","KS,2","KS,2","KS,2","KS,2","KS,2","KS,2","KS,2",null,"KS,2","KS,2","VL,1","KS,2","KS,2"]
[396,3763,"Hermann","Timo","TFC Limbach","BN","BN","BN","BN","BN","BN","BN",null,"BN","BN","BN","BN","BN"]
[397,3764,"Scherer","Martin","TFC Rappweiler","VL","VL",null,"VL","VL",null,"VL","VL","VL","VL","VL","VL","VL"]
[398,3765,"Klass","Mirko","TFC Limbach","BN","BN","BN","BN","BN","BN","BN","BN","BN","BN","BN","BN","BN"]
[399,3766,"Lanfranco","Franco","TFC Limbach","BN","BN","BN","BN","BN","BN","BN",null,"BN","BN","BN","BN","BN"]
[400,3769,"Pfundt-Stutz","Anke","TFC Siersburg","BN","BN","BN","BN",null,null,"BN","BN","BN","BN","BN"]
[401,3781,"Ningelgen","Patrick","TFF Eppelborn",null,"KN",null,"KN",null,null,null,"KN"]
[402,3786,"Klein","Frank","TFC Heusweiler","LL","LL","LL","LL","LL","LL","LL","LL","LL","LL","LL","LL","LL"]
[403,3793,"Feld","Heribert","TFC Riegelsberg","LL,1","LL,1","LL,1","LL,1",null,"LL,1",null,"LL,1","LL,1",null,null,null,"LL,1"]
[404,3802,"Huth","Patrick","TFC Braddock Burbach","VL,2","VL,2","VL,2","VL,2","VL,2","VL,2",null,"VL,2","VL,2","VL,2",null,"VL,2","VL,2"]
[405,3815,"Balzer","Sandra","TFC Bliesen","LL,1","LL,1",null,"LL,1","LL,1","LL,1","LL,1","LL,1","LL,1","LL,1","LL,1",null,"LL,1"]
[406,3832,"Weisgerber","Peter","TFC Ommersheim",null,"BS","BS","BS","BS","BS","BS","BS","BS"]
[407,3845,"Palubitzki","Eckhard","TFC Marpingen",null,null,"VL"]
[408,3852,"Kraus","Dirk","SG Spiesen","LL,1","LL,1","LL,1","LL,1",null,"LL,1","LL,1","LL,1","LL,1",null,"LL,1","LL,1","LL,1"]
[409,3861,"Augat","Patrick","TFG Namborn","BS","BS","BS","BS","BS","BS","BS","BS","BS","BS","BS","BS","BS"]
[410,3870,"Fuchs","Thomas","Kickers Neunkirchen","KS","KS","KS","KS","KS",null,"KS",null,"KS","KS",null,"KS","KS",null,"KS"]
[411,3872,"Klingler","Andreas","TFC Roden","LL,1","LL,1","LL,1","LL,1","LL,1",null,"LL,1","LL,1","LL,1",null,"LL,1","LL,1","LL,1"]
[412,3875,"Scherer","Sascha","RC Tholey","BN","BN","BN","BN","BN","BN","BN","BN","BN",null,null,"BN","BN"]
[413,3880,"Rumpf","Patrick","TFC Hühnerfeld","BS,1","BS,1",null,"BS,1","BS,1","BS,1","BS,1",null,"BS,1","BS,1",null,"BS,1","BS,1"]
[414,3891,"Krämer","Björn","TFC Blau Rot Ensdorf",null,"BN"]
[415,3895,"Thiry","Peter","TFC Bliesen",null,null,"LL,1","LL,1","LL,1","LL,1","LL,1","LL,1","LL,1","LL,1","LL,1","LL,1","LL,1"]
[416,3901,"Klos","Dieter","TFF Marpingen",null,"BN",null,null,null,"BN","BN","BN","BN","BN",null,"BN","BN"]
[417,3942,"Ott","Ernst","TFC Heusweiler",null,null,null,null,null,"LL","LL",null,"LL",null,null,"LL","LL"]
[418,3951,"Decker","Ralf","TFC Limbach",null,null,"BN",null,"BN",null,"BN","BN",null,"BN","BN",null,"BN"]
[419,3964,"Thiel","Markus","TFC Illingen",null,null,"KN,2","KN,2","KN,2","KN,2",null,null,"KN,2","KN,2",null,null,"KN,2"]
[420,3966,"Weiskircher","Dirk","TFC Bliesen",null,null,null,"LL,1",null,null,null,null,"KN,3",null,"KN,3","KN,3"]
[421,3981,"Schumacher","Giovanni","TFC Heinitz/Elversberg",null,"KS,2","VL,1","VL,1","VL,1","VL,1","VL,1",null,null,null,"VL,1","VL,1","VL,1"]
[422,3988,"Heinz-Thiry","Elke","TFC Roden",null,null,"LL,1",null,null,"LL,1","LL,1","LL,1","LL,1","LL,1","LL,1","LL,1","LL,1"]
[423,3989,"Schätzel","Jörg","TFC Wiebelskirchen","BS",null,"BS","BS","BS","BS",null,"BS","BS","BS","BS"]
[424,3992,"Klein","Martin","TFC Lautenbach","VL,1","VL,1","VL,1","VL,1","VL,1","VL,1",null,null,"VL,1","VL,1","VL,1","VL,1","VL,1"]
[425,3995,"Limburg","Nicole","OTC Ottweiler",null,"LL,1","LL,1","LL,1","LL,1","LL,1","LL,1","LL,1","LL,1","LL,1",null,"LL,1","LL,1"]
[426,4001,"Simon","Angelika","TFF Bexbach",null,null,null,"KS",null,null,"KS","KS",null,"KS",null,null,"KS"]
[427,4002,"Simon","Gerd","TFF Bexbach","KS","KS","KS","KS","KS","KS",null,null,"KS","KS","KS","KS","KS"]
[428,4025,"Szymanski","Dieter","TFF Burbach","LL","LL","LL","LL","LL","LL","LL","LL","LL","LL","LL","LL","LL"]
[429,4032,"Schneider","Patric","TFF Burbach","LL",null,"LL","LL","LL","LL","LL","LL","LL","LL","LL"]
[430,4045,"Weiß","Ferdinand","TFC Frankenholz","BS","BS","BS","BS","BS","BS","BS","BS","BS","BS","BS","BS"]
[431,4086,"Besser","Harald","OTC Ottweiler","KS,2","KS,2","KS,2","KS,2","KS,2","KS,2","KS,2","KS,2","KS,2","KS,2",null,"KS,2","KS,2"]
[432,4090,"Berndt","Uli","TFC Hühnerfeld","BS,1","BS,1",null,"BS,1","BS,1","BS,1","BS,1","BS,1","BS,1","BS,1","BS,1","BS,1","BS,1"]
[433,4096,"Klaumann","Timo","TFC Heusweiler",null,"LL",null,"LL","LL","LL","LL","LL","LL","LL","LL","LL","LL"]
[434,4099,"Rech","Tim","TFC Hülzweiler/Saarwellingen","VL,2","VL,2","VL,2","VL,2","VL,2","VL,2","VL,2","VL,2","VL,2",null,"VL,2","VL,2","VL,2"]
[435,4120,"Schneider","Armin","TFC Hülzweiler/Saarwellingen","LL,1","LL,1","LL,1","LL,1","LL,1","LL,1",null,"LL,1","LL,1",null,"LL,1","LL,1","LL,1"]
[436,4127,"Kockelmann","Tanja","TFF Marpingen","BN","BN","BN","BN","BN",null,null,"BN","BN","BN","BN","BN"]
[437,4131,"Kollmann","Mathias","TFC Hülzweiler/Saarwellingen","VL,2","VL,2","VL,2","VL,2","VL,2","VL,2","VL,2","VL,2","VL,2","VL,2","VL,2","VL,2"]
[438,4136,"Bost","Patric","TFC Limbach","BN","BN","BN","BN","BN","BN",null,"BN","BN",null,"BN","BN","BN"]
[439,4141,"Zimmer","Thomas","TFK Schwalbach","BN","BN","BN","BN","BN","BN","BN","BN","BN","BN","BN","BN","BN"]
[440,4156,"Krämer","Johann","TFF Bexbach","KS","KS","KS","KS","KS","KS","KS","KS","KS",null,"KS","KS","KS"]
[441,4180,"Hermann","Nicole","TFC Limbach",null,null,null,"BN","BN","BN","BN","BN","BN",null,"BN","BN","BN"]
[442,4185,"Sprunck","Josef","TFC Ommersheim","BS","BS","BS","BS","BS","BS","BS","BS","BS","BS","BS","BS","BS"]
[443,4188,"Picke","Helmut","TFC Marpingen","VL","VL","VL","VL","VL","VL","VL","VL","VL","VL","VL","VL","VL"]
[444,4212,"Lehnis","Dirk","RC Wustweiler","BN","BN","BN",null,null,"BN","BN","BN","BN","BN","BN","BN","BN"]
[445,4223,"Wolny","Joachim","TFC Hühnerfeld","KS,2",null,"KS,2",null,null,null,null,"KS,2","KS,2","KS,2"]
[446,4233,"Kappler","Frank","SG Spiesen","BS,2",null,null,"BS,2",null,"BS,2",null,"BS,2","BS,2",null,"BS,2","BS,2","BS,2"]
[447,4245,"Isensee","Jürgen","TFG Neunkirchen","KS",null,null,null,null,"KS","KS","KS","KS",null,null,"KS","KS"]
[448,4246,"Kaup","Ralf","TFG Neunkirchen","KS","KS","KS","KS","KS","KS","KS","KS","KS","KS","KS","KS","KS"]
[449,4252,"Masyk","Andreas","TFG Neunkirchen","KS","KS","KS","KS","KS","KS","KS","KS","KS","KS",null,null,"KS"]
[450,4253,"Meisel","Hermann","TFG Neunkirchen","KS","KS","KS","KS","KS","KS","KS","KS","KS","KS","KS","KS","KS"]
[451,4267,"Hans","Christoph","TFC Marpingen",null,"VL",null,"VL",null,"VL"]
[452,4280,"Ziegler","Patrick","RC Wiesbach","LL","LL","LL","LL","LL","LL","LL",null,"LL","LL","LL","LL","LL"]
[453,4285,"Paulus","Ingo","TFC Hülzweiler/Saarwellingen","LL,1","LL,1","LL,1","LL,1","LL,1","LL,1","LL,1","LL,1",null,"LL,1","LL,1","LL,1"]
[454,4299,"Schuler","Volker","TFC Riegelsberg","KN,2","KN,2","LL,1","KN,2",null,"LL,1","LL,1","KN,2",null,null,"KN,2","LL,1","KN,2"]
[455,4317,"Grimm","Sascha","TFC Illingen","VL,1","VL,1","VL,1","VL,1","VL,1",null,"VL,1","VL,1","VL,1","VL,1","VL,1","VL,1","VL,1"]
[456,4330,"Hör","Marc","SG Spiesen",null,"BS,2","BS,2",null,"BS,2",null,"BS,2",null,"BS,2","BS,2","BS,2",null,"BS,2"]
[457,4338,"Pabst","Frederic","TFC Riegelsberg","LL,1",null,"LL,1",null,"LL,1","LL,1","LL,1","LL,1","LL,1",null,null,"LL,1"]
[458,4367,"Schichtel","Stefan","TFC Heinitz/Elversberg","KS,2",null,"KS,2","KS,2","KS,2","KS,2","KS,2",null,null,null,"KS,2"]
[459,4369,"Herrmann","Uwe","TFC Hühnerfeld","BS,1",null,null,null,null,null,"BS,1","BS,1","BS,1","BS,1","BS,1","BS,1","BS,1"]
[460,4379,"Feldes","Joachim","SG Spiesen","LL,1","LL,1",null,"LL,1",null,"LL,1","LL,1","LL,1","LL,1",null,null,"LL,1"]
[461,4388,"Wunderlich","Eric","TFC Illingen",null,"VL,1","VL,1","VL,1","VL,1",null,null,"VL,1",null,"VL,1",null,"VL,1","VL,1"]
[462,4394,"Hoffmann","Christian","RC Hüttigweiler",null,null,null,null,"KS","KS"]
[463,4396,"Papista","Nico","Borussia Neunkirchen","VL","VL","VL","VL","VL","VL","VL","VL",null,"VL","VL","VL","VL"]
[464,4409,"Andler","Susanne","RC Schiffweiler",null,null,"KS",null,null,"KS",null,null,null,null,"KS",null,"KS"]
[465,4411,"Wagner","Peter","TFC Braddock Burbach","VL,2","VL,2","VL,2","VL,2","VL,2","VL,2",null,null,null,null,null,"VL,2","VL,2"]
[466,4413,"Müller","Andreas","TFF Marpingen","BN",null,"BN","BN","BN",null,"BN","BN",null,null,"BN",null,"BN"]
[467,4418,"Tausend","Jürgen","TFC Hühnerfeld","KS,2","KS,2","KS,2","KS,2",null,"KS,2","KS,2","KS,2","KS,2","KS,2",null,"KS,2","KS,2"]
[468,4422,"Schäfer","Sascha","RC Hüttigweiler","KS","KS","KS","KS","KS","KS","KS",null,"KS","KS","KS","KS","KS"]
[469,4424,"Kartes","Marco","RC Hüttigweiler",null,"KS","KS",null,null,null,null,"KS",null,"KS"]
[470,4436,"Weiß","Tanja","TFC Frankenholz",null,"BS","BS","BS","BS",null,null,"BS","BS","BS","BS","BS"]
[471,4440,"Zimmer","Eric","RC Tholey",null,null,"BN","BN",null,"BN"]
[472,4472,"Müller","Timo","TFC Lautenbach",null,"KS,2",null,"KS,2",null,"KS,2","KS,2","KS,2","KS,2",null,null,"KS,2","KS,2"]
[473,4475,"Weber","Sven","Borussia Neunkirchen",null,"VL",null,null,"VL",null,null,"VL",null,"VL",null,"VL","VL"]
[474,4482,"Albert","Marco","TFC Bliesen",null,null,null,"BN,2","BN,2","BN,2","BN,2","BN,2",null,null,"BN,2"]
[475,4490,"Wack","Hartmut","TFC Ommersheim","BS",null,"BS",null,null,null,null,null,"BS","BS","BS","BS","BS"]
[476,4532,"Ingenbrand","Karsten","TFC Braddock Burbach","LL,1","LL,1","LL,1",null,null,"LL,1",null,"LL,1","LL,1","LL,1"]
[477,4533,"Polensak","Ronald","TFF Marpingen","BN","BN","BN","BN","BN","BN","BN","BN","BN","BN","BN","BN"]
[478,4549,"Dörr","Karen","SG Köllerbach",null,null,null,null,null,null,"BN"]
[479,4555,"Schmitt","Ralf","TFC Riegelsberg",null,"KN,2","KN,2","KN,2","KN,2","KN,2",null,null,"KN,2","KN,2","KN,2"]
[480,4563,"Schmitt","Uwe","Kickers Neunkirchen",null,"KS",null,"KS","KS","KS","KS","KS","KS","KS",null,"KS","KS"]
[481,4564,"Schmitt","Manfred","Kickers Neunkirchen","KS",null,"KS",null,"KS","KS","KS","KS","KS","KS",null,"KS","KS",null,"KS"]
[482,4566,"Lindner","Peter","Gut Stubb Neunkirchen","BS","BS","BS","BS","BS","BS","BS",null,"BS","BS","BS","BS","BS"]
[483,4568,"Oberringer","Thomas","TFG Neunkirchen","KS","KS",null,null,null,null,"KS","KS",null,"KS","KS","KS"]
[484,4569,"Oberringer","Hans-Jürgen","TFG Neunkirchen","KS","KS","KS","KS","KS","KS","KS","KS","KS","KS","KS","KS","KS"]
[485,4594,"Volz","Karsten","TFC Illingen","VL,1","VL,1","VL,1","VL,1",null,null,"VL,1","VL,1","VL,1","VL,1",null,"VL,1","VL,1"]
[486,4598,"Falcone","Nello","SG Spiesen","BS,2",null,"BS,2",null,"LL,1","LL,1",null,"BS,2","LL,1","BS,2"]
[487,4629,"Ziegler","Dietmar","RC Wiesbach","LL","LL","LL","LL","LL","LL",null,"LL","LL","LL","LL","LL","LL"]
[488,4662,"Seitz","Eric","TFC Lautenbach","VL,1","VL,1","VL,1","VL,1",null,"VL,1","VL,1","VL,1",null,null,"KS,2","VL,1"]
[489,4664,"Lambert","Dieter","TFC Illingen","VL,1","VL,1","VL,1","VL,1","VL,1",null,"VL,1",null,"VL,1",null,null,"KN,2","KN,2"]
[490,4669,"Konrath-Schüller","Christian","TFC Wiebelskirchen","BS","BS",null,"BS","BS","BS",null,"BS","BS",null,null,"BS","BS"]
[491,4679,"Masyk","Manuela","TFG Neunkirchen",null,null,"KS",null,"KS",null,null,null,"KS"]
[492,4685,"Klauk","Mathias","SG Spiesen","BS,2","BS,2","LL,1",null,"LL,1","BS,2","BS,2","BS,2","LL,1",null,"LL,1","LL,1","LL,1"]
[493,4696,"Schwarz","Rudi","TFC Limbach",null,"BN","BN",null,"BN","BN","BN",null,"BN","BN","BN","BN","BN"]
[494,4700,"Sträßer","Stephan","TFC Bliesen","LL,1","LL,1","LL,1","LL,1","LL,1","LL,1",null,"LL,1","LL,1","LL,1","LL,1","LL,1"]
[495,4720,"Wendel","Peter","TFC Heinitz/Elversberg","VL,1",null,"KS,2",null,null,"KS,2",null,"VL,1","VL,1","KS,2","KS,2","VL,1","VL,1"]
[496,4761,"Gammel","Heiko","RC Wiesbach","LL","LL","LL","LL","LL","LL","LL","LL","LL","LL","LL","LL","LL"]
[497,4772,"Thull","Josef","TFC Heusweiler","LL","LL","LL","LL","LL",null,"LL","LL","LL","LL","LL",null,"LL"]
[498,4780,"Schlicher","Markus","TFC Theley","VL",null,"VL","VL",null,null,null,null,"VL",null,null,null,"VL"]
[499,4786,"Schnur","Rainer","TFC Morscholz","KN","KN",null,"KN","KN","KN","KN",null,"KN","KN","KN",null,"KN"]
[500,4815,"Scholer","Gilbert","TFC Siersburg","BN","BN","BN","BN","BN",null,"BN","BN","BN","BN"]
[501,4829,"Rieke","Andreas","TFC Ludweiler","VL","VL","VL","VL","VL","VL","VL","VL","VL","VL","VL","VL","VL"]
[502,4830,"Jung","Markus","TFC Ludweiler",null,"VL","VL","VL","VL",null,null,"VL","VL","VL","VL","VL"]
[503,4831,"Georg","Sascha","RC Wustweiler","BN","BN","BN","BN","BN",null,null,"BN","BN","BN",null,"BN"]
[504,4837,"Scherer","Joachim","TFC Limbach",null,null,null,"BN",null,null,null,null,null,"BN",null,null,"BN"]
[505,4838,"Muskulus","Markus","TFF Bexbach","KS","KS","KS","KS","KS","KS","KS",null,"KS","KS","KS","KS","KS"]
[506,4854,"Thewes","Klaus","TFC Morscholz",null,"KN",null,"KN",null,null,"KN",null,null,"KN","KN"]
[507,4863,"Brill","Michael","TFC St. Wendel","KN","KN","KN","KN","KN",null,null,"KN",null,"KN","KN",null,"KN"]
[508,4864,"Lesch","Frank","TFC St. Wendel","KN","KN","KN","KN","KN",null,"KN",null,"KN","KN","KN","KN"]
[509,4890,"Welkenbach","Christoph","TFC Riegelsberg","LL,1","LL,1","LL,1","LL,1","LL,1","LL,1","LL,1","LL,1","LL,1",null,null,"LL,1","LL,1"]
[510,4942,"Reuter","Axel","TFC Morscholz","KN","KN",null,"KN",null,null,null,null,null,null,"KN",null,"KN"]
[511,4956,"Strauß","Jürgen","TFC Hühnerfeld","BS,1","BS,1","BS,1","BS,1","BS,1","BS,1","BS,1","BS,1","BS,1","BS,1","BS,1","BS,1","BS,1"]
[512,4965,"Barth","Stefan","TFC Remmesweiler","BS","BS","BS","BS","BS","BS","BS","BS",null,"BS","BS","BS","BS"]
[513,4980,"Balzer","Helmut","TFC Bliesen","LL,1","LL,1","LL,1","LL,1","LL,1","LL,1","LL,1",null,"LL,1","LL,1","LL,1","LL,1","LL,1"]
[514,5002,"Gessner","Sven","TFC Remmesweiler","BS","BS","BS","BS",null,"BS",null,"BS"]
[515,5010,"Michels","Thomas","TFC Remmesweiler",null,"BS"]
[516,5011,"Müller","Dirk","TFC Remmesweiler",null,"BS","BS","BS","BS","BS","BS","BS",null,"BS",null,null,"BS"]
[517,5012,"Recktenwald","Franco","TFC Remmesweiler","BS","BS","BS","BS","BS","BS","BS","BS",null,"BS",null,"BS","BS"]
[518,5016,"Petrick","Frank","TFC Remmesweiler","BS",null,null,"BS","BS","BS","BS","BS",null,null,"BS","BS"]
[519,5017,"Thome","Christoph","TFC Remmesweiler","BS","BS",null,"BS","BS","BS","BS","BS",null,"BS",null,"BS","BS"]
[520,5037,"Saar","Michael","TFC Remmesweiler",null,null,null,null,"BS","BS","BS","BS",null,"BS","BS","BS","BS"]
[521,5039,"Will","Dieter","TFC Bliesen",null,"KN,3","KN,3","KN,3","KN,3","KN,3","KN,3","KN,3","KN,3",null,"KN,3","KN,3","KN,3"]
[522,5045,"Wagner","Karl-Heinz","TFG Namborn","BS",null,null,"BS",null,"BS","BS",null,"BS",null,"BS","BS","BS"]
[523,5056,"Fucek","Thomas","RC Wiesbach","LL","LL",null,"LL","LL","LL","LL","LL","LL","LL","LL","LL","LL"]
[524,5059,"Schwarz","Ingo","RC Wiesbach","LL",null,null,"LL","LL",null,"LL","LL","LL","LL","LL","LL","LL"]
[525,5066,"Zimmer","Siegfried","SG Spiesen","BS,2","BS,2","BS,2","BS,2","BS,2","BS,2","BS,2","BS,2","BS,2","BS,2",null,"BS,2"]
[526,5068,"Werle","Michael","TFG Neunkirchen","KS","KS","KS","KS","KS","KS","KS","KS","KS","KS","KS","KS","KS"]
[527,5070,"Oberringer","Dirk","TFC Heinitz/Elversberg","KS,2","KS,2",null,"KS,2","KS,2","KS,2","KS,2",null,"VL,1","KS,2","KS,2","KS,2","KS,2"]
[528,5128,"Schmitt","Hans-Jürgen","TFC Morscholz",null,null,null,null,"KN",null,"KN",null,"KN","KN","KN",null,"KN"]
[529,5145,"Becker","Tim","TFC Lautenbach","KS,2",null,"KS,2","VL,1","VL,1","KS,2","VL,1","VL,1","VL,1",null,"VL,1","VL,1","VL,1"]
[530,5147,"Schmitt","Sebastian","TFC Morscholz",null,null,null,"KN"]
[531,5153,"Kühnreich","Marcus","TFC Braddock Burbach",null,null,null,null,null,null,"VL,2"]
[532,5164,"Neustedt","Markus","TFF Marpingen","BN","BN","BN","BN","BN","BN","BN","BN","BN","BN","BN"]
[533,5176,"Thome","Mike","TFC Roden","LL,1","LL,1","LL,1","LL,1","LL,1",null,"LL,1","LL,1","LL,1","LL,1",null,"LL,1","LL,1"]
[534,5186,"Feller","Andreas","TFC Ludweiler","VL","VL",null,null,"VL",null,"VL","VL","VL","VL","VL","VL","VL"]
[535,5190,"Kiel","Gabriele","RC Berschweiler","KN",null,null,"KN",null,"KN","KN",null,"KN","KN","KN",null,"KN"]
[536,5194,"Weber","Christoph","TFC Frankenholz","BS",null,"BS","BS","BS",null,"BS",null,null,"BS","BS","BS","BS"]
[537,5214,"Ewen","Denis","RC Tholey","BN","BN"]
[538,5217,"Buschlinger","Markus","OTC Ottweiler",null,null,null,null,null,null,"KS,2","KS,2",null,"KS,2"]
[539,5231,"Grobler","Patrick","TFC Illingen","KN,2",null,"KN,2","KN,2","KN,2","KN,2","KN,2","KN,2","KN,2","KN,2",null,"KN,2","KN,2"]
[540,5232,"Grimm","Pascal","TFC Ommersheim","BS","BS","BS","BS","BS","BS","BS","BS","BS","BS","BS","BS","BS"]
[541,5244,"Gehres","Dirk","RC Schiffweiler",null,null,null,null,null,null,null,"KS",null,"KS","KS","KS","KS",null,"KS"]
[542,5250,"Glutting","Ralf","RC Schiffweiler","KS","KS","KS","KS","KS","KS","KS","KS","KS","KS","KS","KS","KS",null,"KS"]
[543,5251,"Eckert","Reinhard","RC Schiffweiler","KS",null,"KS","KS","KS","KS","KS","KS",null,"KS",null,null,"KS",null,"KS"]
[544,5256,"Thull","Rudi","TFC Heusweiler","LL","LL","LL","LL",null,null,"LL","LL","LL","LL","LL","LL","LL"]
[545,5281,"Lang","Nicole","RC Berschweiler","KN",null,null,null,null,"KN","KN","KN","KN","KN","KN","KN"]
[546,5282,"Bröckel","Stefan","RC Berschweiler",null,"KN","KN","KN",null,"KN","KN",null,"KN","KN",null,null,"KN"]
[547,5288,"Klein","Andreas","TFC Bliesen",null,"KN,3","KN,3","KN,3","KN,3","KN,3","KN,3","KN,3","KN,3",null,"KN,3","KN,3","KN,3"]
[548,5290,"Kuhn","Frank","TFG Namborn","BS","BS",null,"BS","BS",null,"BS","BS","BS","BS","BS","BS"]
[549,5305,"Wilhelm","Christoph","TFC Illingen","VL,1","VL,1","VL,1","VL,1","VL,1",null,"VL,1","VL,1","VL,1","VL,1","VL,1","VL,1","VL,1"]
[550,5331,"Peter","Marc","TFC Marpingen",null,"VL",null,"VL","VL",null,null,"VL",null,null,null,null,"VL"]
[551,5332,"Schlaup","Eduard","TFC St. Wendel","KN","KN","KN","KN","KN",null,"KN","KN","KN","KN","KN","KN","KN"]
[552,5347,"Scholer","Thorsten","TFC Siersburg","BN","BN","BN","BN",null,"BN","BN","BN",null,null,null,"BN"]
[553,5370,"Schwarz","Jörg","TFC Morscholz","KN","KN",null,"KN","KN","KN","KN",null,"KN","KN",null,null,"KN"]
[554,5384,"Leist","Christian","TFC Bliesen","LL,1","LL,1","LL,1",null,"LL,1","LL,1","LL,1","LL,1",null,null,null,null,"LL,1"]
[555,5388,"Neu","Andreas","TFC Heusweiler","LL",null,"LL","LL"]
[556,5388,"Neu","Andreas","TFC Riegelsberg",null,null,null,null,null,null,null,null,null,null,null,"LL,1","LL,1"]
[557,5389,"Rupp","Sascha","TFC Braddock Burbach",null,null,null,null,null,null,null,"VL,2","VL,2"]
[558,5391,"Gerhards","Carsten","TFC Riegelsberg",null,"LL,1",null,null,"LL,1","LL,1","LL,1","LL,1"]
[559,5400,"Otsmani","Rachid","TFF Burbach","LL","LL","LL","LL",null,null,"LL"]
[560,5421,"Gorius","Roland","TFC Ludweiler",null,null,null,null,null,null,null,null,null,"VL"]
[561,5430,"Lützenberger","Steven","TFC Remmesweiler",null,null,null,null,"BS","BS","BS","BS",null,"BS","BS","BS","BS"]
[562,5438,"Haag","Christian","TFC Heinitz/Elversberg","VL,1","VL,1",null,"VL,1","VL,1","VL,1","VL,1","VL,1","VL,1","VL,1","VL,1","VL,1"]
[563,5447,"Matzak","Timo","TFC Limbach","BN","BN","BN","BN","BN","BN","BN","BN","BN","BN",null,"BN","BN"]
[564,5512,"Limbach","Dieter","TFC Marpingen","VL","VL","VL","VL","VL",null,"VL","VL","VL","VL","VL","VL","VL"]
[565,5527,"Rupp","Patrick","TFC St. Wendel",null,"KN","KN","KN","KN",null,"KN","KN","KN","KN","KN",null,"KN"]
[566,5530,"Giammarino","Johannes","TFF Bexbach","KS","KS","KS","KS","KS","KS",null,"KS","KS","KS"]
[567,5551,"Alt","Thomas","TFC FriBi","BS",null,"BS",null,null,"BS","BS","BS",null,null,"BS"]
[568,5555,"Quinten","Sven","TFC Roden",null,null,null,null,null,null,null,null,null,"LL,1"]
[569,5558,"Palubitzki","Heiko","TFC Bliesen","LL,1","LL,1","LL,1","LL,1","LL,1","LL,1","LL,1","LL,1","LL,1","LL,1","LL,1","LL,1"]
[570,5559,"Wiese","Michael","TFF Marpingen","BN","BN","BN","BN","BN","BN",null,"BN"]
[571,5567,"Jost","Jürgen","TFC Lautenbach","KS,2","KS,2","KS,2",null,"KS,2","KS,2",null,"KS,2","KS,2","KS,2",null,"KS,2","KS,2"]
[572,5584,"Maas","Torsten","TFC Schiffweiler","BS","BS","BS","BS","BS","BS","BS","BS",null,"BS","BS","BS","BS"]
[573,5604,"Weiß","Silvio","Kickers Neunkirchen","KS",null,"KS",null,"KS",null,null,null,"KS",null,null,"KS",null,null,"KS"]
[574,5611,"Umhofer","Tina","TFC Marpingen",null,null,null,null,null,null,"VL"]
[575,5621,"Gehres","Holger","RC Schiffweiler","KS",null,"KS","KS","KS",null,"KS","KS","KS","KS","KS","KS","KS",null,"KS"]
[576,5635,"Lupusella","Franco","TFC Braddock Burbach","VL,2","VL,2","VL,2",null,"VL,2","VL,2","VL,2","VL,2","VL,2","VL,2",null,null,"VL,2"]
[577,5639,"Lutz","Sandy","Borussia Neunkirchen",null,"VL","VL","VL","VL","VL","VL","VL",null,"VL","VL",null,"VL"]
[578,5650,"Regitz","Sascha","TFC Dynamo Neunkirchen",null,"KS"]
[579,5659,"Tinnes","Stephan","TFC Dynamo Neunkirchen","KS","KS","KS","KS","KS","KS","KS","KS","KS","KS","KS","KS","KS"]
[580,5666,"Hengel","Josef","TFC Blau Rot Ensdorf","BN","BN","BN","BN","BN","BN","BN",null,"BN","BN","BN","BN","BN"]
[581,5670,"Fuhrmann","Andreas","TFC Hülzweiler/Saarwellingen","LL,1","LL,1","LL,1","LL,1","LL,1","LL,1","LL,1","LL,1","LL,1","LL,1","LL,1",null,"LL,1"]
[582,5681,"Fuchs","Heiko","TFC Hülzweiler/Saarwellingen","LL,1",null,"LL,1","LL,1",null,"LL,1",null,null,"LL,1","LL,1","LL,1","LL,1"]
[583,5694,"Stoll","Christian","OTC Ottweiler","LL,1","LL,1",null,"LL,1","KS,2","KS,2",null,null,"KS,2","KS,2",null,"LL,1","KS,2"]
[584,5703,"Woll","Christian","TFC Illingen","VL,1",null,"VL,1","VL,1","VL,1",null,"VL,1","VL,1","VL,1","VL,1","VL,1","VL,1","VL,1"]
[585,5704,"Köhler","Jörg","SG Spiesen",null,null,null,null,null,null,null,"LL,1",null,null,"LL,1","LL,1","LL,1"]
[586,5707,"Hart","Torsten","RC Tholey",null,null,"BN","BN","BN",null,"BN",null,"BN","BN","BN",null,"BN"]
[587,5764,"Weigerding","Peter","TFC Lautenbach","VL,1",null,null,"VL,1","VL,1","VL,1",null,null,"VL,1","VL,1","VL,1","VL,1","VL,1"]
[588,5769,"Breit","Kevin","TFC Schiffweiler","BS","BS","BS","BS","BS","BS","BS","BS",null,"BS","BS","BS","BS"]
[589,5774,"Sauer","Dirk","RC Hüttigweiler",null,null,"KS","KS","KS","KS","KS","KS","KS","KS","KS","KS","KS"]
[590,5833,"Kohn","Michael","TFC Illingen","VL,1","VL,1","VL,1",null,"VL,1",null,"VL,1","VL,1","VL,1","VL,1","VL,1",null,"VL,1"]
[591,5836,"Kreutzer","Christian","TFC Illingen","VL,1","VL,1","VL,1","VL,1","VL,1",null,"VL,1","VL,1","VL,1","VL,1","VL,1","VL,1","VL,1"]
[592,5870,"End","Pierre","TFC Wiebelskirchen","BS",null,"BS","BS","BS","BS","BS","BS",null,"BS",null,null,"BS"]
[593,5875,"Sick","Kai","OTC Ottweiler","LL,1","LL,1",null,"LL,1","LL,1","LL,1","LL,1","LL,1","LL,1","LL,1"]
[594,5877,"Wagner","Markus","TFC Remmesweiler",null,null,"BS",null,null,null,null,null,null,"BS",null,"BS"]
[595,5881,"Visone","Giuseppe","TFC Schiffweiler","BS","BS","BS","BS","BS",null,"BS","BS",null,"BS",null,"BS","BS"]
[596,5901,"Albert","Christian","TFC Riegelsberg",null,"LL,1","LL,1","LL,1","LL,1","LL,1","LL,1","LL,1","LL,1",null,null,"LL,1","LL,1"]
[597,5905,"Schwarz","Daniela","TFC Morscholz","KN",null,null,"KN","KN","KN","KN",null,"KN","KN",null,null,"KN"]
[598,5917,"Gruber","Jörg","TFC Illingen","VL,1","VL,1","VL,1","VL,1","VL,1",null,null,"VL,1",null,null,"VL,1","KN,2","KN,2"]
[599,5929,"Fuchs","Carsten","TFC Illingen","KN,2",null,"KN,2","KN,2","KN,2","KN,2","KN,2","KN,2",null,"KN,2",null,"KN,2"]
[600,5931,"Schmelzer-Buschlinger","Nina","OTC Ottweiler",null,null,null,null,null,null,"KS,2","KS,2",null,null,null,"KS,2"]
[601,5966,"Grobler","Marina","TFC Illingen","KN,2",null,"KN,2","KN,2",null,"KN,2","KN,2","KN,2","KN,2",null,null,"KN,2","KN,2"]
[602,5971,"Sträßer","Tina","TFC Bliesen","BN,2","BN,2",null,null,"KN,3",null,null,"BN,2","BN,2","BN,2","BN,2","BN,2"]
[603,5980,"Wagner","Marco","TFC St. Wendel",null,null,"KN",null,null,null,null,null,null,"KN","KN",null,"KN"]
[604,5982,"Müller","Roman","TFF Bexbach",null,null,null,null,null,null,"KS",null,"KS","KS",null,"KS","KS"]
[605,5986,"Mitzel","Alexander","OTC Ottweiler","KS,2","KS,2","KS,2","KS,2","KS,2","KS,2","KS,2","KS,2","KS,2","KS,2",null,"KS,2","KS,2"]
[606,6002,"Poppe","Sven","TFC Lautenbach","KS,2","KS,2","KS,2","KS,2",null,null,"KS,2","VL,1","KS,2","KS,2",null,"KS,2","KS,2"]
[607,6005,"Wiesemann","Sascha","TFC Schiffweiler","BS","BS","BS",null,"BS","BS","BS","BS",null,"BS","BS","BS"]
[608,6007,"Wagner","Dominik","TFC Bliesen","LL,1","LL,1","BN,2","LL,1","LL,1","LL,1","LL,1","LL,1","LL,1","LL,1","LL,1","LL,1","LL,1"]
[609,6037,"Colle","Andre","RC Tholey",null,"BN","BN","BN","BN","BN","BN","BN","BN","BN","BN","BN","BN"]
[610,6045,"Henkes","Pascal","RC Tholey",null,null,"BN","BN","BN","BN","BN","BN","BN","BN","BN",null,"BN"]
[611,6070,"Kunz","Thomas","TFC Marpingen",null,null,"VL","VL"]
[612,6088,"Schnur","Martin","TFC Illingen","VL,1","VL,1","VL,1","VL,1","VL,1",null,"VL,1","VL,1","VL,1",null,"VL,1",null,"VL,1"]
[613,6094,"Jost","Lars","TFC Lautenbach","VL,1","VL,1","KS,2","VL,1","VL,1","VL,1","VL,1","VL,1","VL,1","VL,1","VL,1","VL,1","VL,1"]
[614,6107,"Hinsberger-Sick","Dirk","OTC Ottweiler","KS,2","KS,2","KS,2","KS,2","KS,2","KS,2"]
[615,6131,"Bruch","Stephan","SG Spiesen","BS,2",null,"BS,2","BS,2","BS,2","BS,2",null,"BS,2"]
[616,6133,"Fuchs","Jennifer","TFC Hülzweiler/Saarwellingen","VL,2","VL,2","VL,2","VL,2","VL,2","VL,2","VL,2","VL,2","VL,2","VL,2","VL,2","VL,2","VL,2"]
[617,6144,"Bauer","Nicole","TFC Heinitz/Elversberg",null,"KS,2","KS,2","KS,2",null,"KS,2","KS,2",null,"KS,2","KS,2","VL,1","KS,2"]
[618,6151,"Sonn","Sascha","OTC Ottweiler",null,"KS,2","KS,2","KS,2","KS,2",null,"KS,2",null,"KS,2","KS,2",null,"KS,2","KS,2"]
[619,6156,"Krämer","Markus","SG Köllerbach","BN","BN",null,"BN","BN","BN","BN","BN","BN","BN","BN",null,"BN"]
[620,6179,"Spaniol","Christian","TFC Roden","LL,1","LL,1","LL,1","LL,1","LL,1","LL,1",null,null,null,"LL,1","LL,1",null,"LL,1"]
[621,6190,"Bordin","Eckhard","TFK Schwalbach","BN","BN","BN","BN","BN","BN","BN","BN","BN","BN","BN","BN","BN"]
[622,6193,"Sauer","Thorsten","Borussia Neunkirchen","VL","VL","VL","VL","VL","VL","VL","VL",null,"VL","VL","VL"]
[623,6198,"Kropp","Alexander","TFC Braddock Burbach","VL,2",null,"VL,2","VL,2","VL,2","VL,2","VL,2","VL,2","VL,2","VL,2",null,"VL,2","VL,2"]
[624,6214,"Weber","Dominique","RC Hüttigweiler","KS","KS","KS","KS","KS","KS","KS",null,null,null,"KS","KS","KS"]
[625,6219,"Conrad","Kai","TFC Hülzweiler/Saarwellingen","VL,2","VL,2","VL,2","VL,2",null,"VL,2","VL,2","VL,2",null,"VL,2","VL,2","VL,2","VL,2"]
[626,6286,"Mohr","Eric","RC Berschweiler","KN","KN","KN","KN",null,null,null,null,null,null,"KN",null,"KN"]
[627,6290,"Fetzer","Edgar","TFC Heinitz/Elversberg",null,null,null,null,null,null,null,null,"KS,2",null,"KS,2","KS,2","KS,2"]
[628,6294,"Kleer","Maurice","TFC Heusweiler","LL","LL","LL","LL","LL","LL","LL","LL","LL","LL",null,"LL","LL"]
[629,6303,"Braun","Rainer","TFC Heinitz/Elversberg","VL,1","KS,2",null,null,"KS,2",null,null,null,null,null,"KS,2","KS,2","KS,2"]
[630,6321,"Frieß","Marc","TFK Schwalbach",null,"BN",null,null,null,null,"BN",null,"BN","BN",null,"BN"]
[631,6348,"Groß","Kevin","TFG Namborn","BS","BS","BS","BS","BS",null,"BS","BS","BS","BS","BS","BS"]
[632,6380,"Alles","Michael","TFF Burbach","LL","LL","LL","LL","LL","LL","LL","LL","LL","LL","LL","LL","LL"]
[633,6384,"Kollmannsperger","Marcus","TFF Burbach",null,"LL"]
[634,6385,"Diederich","Stefan","TFC Braddock Burbach","LL,1","LL,1","LL,1","LL,1","LL,1","LL,1","LL,1","LL,1","LL,1","LL,1","LL,1","LL,1","LL,1"]
[635,6433,"Hubertus","Andre","TFF Marpingen",null,null,null,"BN",null,"BN","BN"]
[636,6451,"Nikolai","Andreas","RC Hüttigweiler","KS",null,"KS",null,"KS",null,null,"KS","KS"]
[637,6455,"Oberle","Frank","TFG Neunkirchen","KS","KS",null,"KS","KS","KS","KS","KS","KS","KS","KS","KS","KS"]
[638,6491,"Holzschuh","Torsten","TFC Braddock Burbach",null,"LL,1","LL,1","LL,1","LL,1","LL,1","LL,1","LL,1","LL,1","LL,1","LL,1","LL,1","LL,1"]
[639,6526,"Mohr","Stefanie","RC Berschweiler","KN","KN","KN","KN",null,"KN","KN","KN","KN","KN","KN","KN","KN"]
[640,6554,"Gläser","Sascha","TFC Bliesen","LL,1","LL,1","LL,1",null,"LL,1","LL,1",null,"LL,1","LL,1","LL,1","LL,1","LL,1","LL,1"]
[641,6582,"Gläser","Pascal","TFC Bliesen","LL,1","LL,1","LL,1",null,null,null,"LL,1",null,"LL,1","LL,1","LL,1","LL,1"]
[642,6605,"Roland","Christoph","TFC Schiffweiler",null,null,null,"BS",null,null,null,null,null,null,null,null,"BS"]
[643,6611,"Papst","Stefanie","TFC Riegelsberg",null,null,null,null,null,null,null,null,"KN,2"]
[644,6614,"Albert","Sebastian","TFC Riegelsberg","LL,1","LL,1","LL,1",null,"LL,1","LL,1",null,null,"LL,1",null,null,"LL,1","LL,1"]
[645,6622,"Goebels","Michael","TFC Lautenbach",null,"KS,2","KS,2",null,null,"KS,2","VL,1","VL,1","KS,2",null,"KS,2","KS,2","KS,2"]
[646,6639,"Sträßer","Franz-Josef","TFC Roden",null,null,"BN,2",null,"BN,2"]
[647,6666,"Backes","Christoph","TFC Illingen","VL,1","VL,1",null,"VL,1","VL,1",null,null,"VL,1",null,null,"VL,1","VL,1"]
[648,6684,"Gref","Anja","TFG Namborn","BS",null,"BS","BS",null,null,null,"BS"]
[649,6715,"Haag","Marco","TFC Heinitz/Elversberg","VL,1",null,"VL,1","VL,1","VL,1","VL,1","VL,1",null,"VL,1","VL,1",null,"VL,1","VL,1"]
[650,6722,"Zimmer","Patrick","RC Berschweiler","KN","KN","KN","KN",null,"KN","KN",null,"KN","KN","KN","KN","KN"]
[651,6723,"Strassel","Andy","RC Schiffweiler",null,"KS",null,null,null,null,null,null,null,null,null,"KS"]
[652,6733,"Jung","Kristina","TFC Heinitz/Elversberg",null,null,null,"KS,2",null,null,null,"VL,1","KS,2",null,"VL,1"]
[653,6734,"Borsdorff","Sascha","TFC Heinitz/Elversberg",null,null,null,null,null,null,null,null,null,null,null,null,"KS,2"]
[654,6750,"Grimm","Andrea","TFC Illingen","KN,2",null,null,"KN,2",null,"KN,2","KN,2","KN,2",null,"KN,2",null,null,"KN,2"]
[655,6753,"Jenet","Andreas","TFC Schiffweiler","BS","BS","BS","BS","BS","BS","BS","BS",null,"BS","BS","BS","BS"]
[656,6754,"Klein","Heiko","RC Wiesbach",null,"LL",null,null,"LL",null,null,"LL","LL","LL","LL","LL","LL"]
[657,6757,"Both","Carsten","TFK Schwalbach","BN","BN","BN","BN","BN","BN","BN","BN","BN","BN","BN","BN","BN"]
[658,6762,"Gabriel","Nicole","OTC Ottweiler","LL,1",null,"LL,1",null,null,"LL,1","LL,1","LL,1","LL,1","LL,1",null,"LL,1","LL,1"]
[659,6776,"Brünnet","Kai","TFC Wahlen","KN","KN","KN",null,"KN","KN","KN","KN","KN","KN","KN","KN"]
[660,6783,"Maniglia","Giuseppe","TFC Wahlen",null,"KN","KN",null,"KN","KN"]
[661,6787,"Seewald","Karl-Heinz","TFC Wahlen","KN","KN","KN",null,"KN","KN",null,"KN","KN","KN","KN"]
[662,6789,"Uder","Natalia","TFC Wahlen","KN",null,null,null,"KN","KN","KN","KN","KN","KN",null,"KN"]
[663,6800,"Schmitt","Katrin","TFC Bliesen",null,null,null,null,null,null,null,null,"KN,3",null,"KN,3","KN,3","KN,3"]
[664,6810,"Messina","Giuseppe","TFC Heinitz/Elversberg",null,null,null,null,null,null,null,"VL,1","VL,1","VL,1"]
[665,6820,"Braun","Horst sen.","OTC Ottweiler",null,null,null,null,null,null,null,"LL,1","LL,1",null,null,"LL,1"]
[666,6825,"Braun","Horst","OTC Ottweiler","LL,1","LL,1","LL,1","LL,1","LL,1","LL,1","LL,1","LL,1","LL,1",null,null,"LL,1"]
[667,6840,"Bulcan","Necdet","TFC Hülzweiler/Saarwellingen","VL,2","VL,2","VL,2","VL,2","VL,2","VL,2",null,"VL,2","VL,2","VL,2","VL,2","VL,2","VL,2"]
[668,6847,"Franke","Sandro","TFG Namborn",null,"BS","BS","BS","BS","BS","BS","BS","BS","BS","BS","BS","BS"]
[669,6850,"Schommer","Ralf","TFC Wahlen",null,null,null,null,null,null,"KN",null,"KN",null,null,"KN"]
[670,6858,"Heckmann","Eva-Maria","TFK Schwalbach",null,null,null,"BN",null,null,null,null,null,null,"BN"]
[671,6864,"Schweizer","Sarah-Claire","RC Tholey","BN","BN","BN","BN","BN","BN","BN","BN","BN","BN","BN","BN","BN"]
[672,6875,"Sturmer","David","TFC Roden","LL,1","LL,1","LL,1","LL,1","LL,1","LL,1","LL,1",null,null,null,"LL,1","LL,1","LL,1"]
[673,6879,"Heisel","Ralf","TFK Schwalbach","BN","BN"]
[674,6880,"Giese","Tilmann","TFC Ommersheim","BS","BS",null,"BS","BS","BS","BS","BS",null,"BS","BS","BS","BS"]
[675,6885,"Timpano","Damiano","TFC Wiebelskirchen","BS",null,null,"BS","BS","BS","BS",null,null,"BS","BS"]
[676,6886,"Timpano","Raffaele","TFC Wiebelskirchen","BS","BS","BS","BS","BS"]
[677,6896,"Dupré","Stephanie","TFC Illingen","KN,2",null,"KN,2","KN,2",null,null,"KN,2",null,"KN,2","KN,2",null,"KN,2"]
[678,6915,"Müller","Steven","TFC Hülzweiler/Saarwellingen",null,"LL,1","LL,1","LL,1",null,"LL,1","LL,1","LL,1","LL,1","LL,1","LL,1","LL,1","LL,1"]
[679,6916,"Hübschen","Roman","TFC Roden","LL,1",null,"BN,2",null,"BN,2","BN,2","BN,2","BN,2","BN,2","BN,2","LL,1","BN,2","BN,2"]
[680,6918,"Rebmann","Peter","TFC Ommersheim",null,"BS"]
[681,6919,"Bard","Steven","TFC Bliesen",null,"LL,1","LL,1","LL,1","LL,1","LL,1","LL,1","LL,1","LL,1","LL,1","LL,1","LL,1","LL,1"]
[682,6920,"Gratz","Benjamin","RC Tholey","BN",null,"BN","BN","BN",null,"BN",null,"BN","BN",null,"BN"]
[683,6923,"Ruppenthal","Jörg","TFF Burbach","LL","LL",null,null,"LL",null,"LL","LL","LL","LL","LL","LL","LL"]
[684,6941,"Rosar","Dietmar","TFC Rappweiler","VL",null,"VL","VL",null,null,"VL",null,null,null,null,"VL","VL"]
[685,6943,"Alaimo","Fabrizio","TFC Wiebelskirchen",null,null,"BS","BS",null,"BS","BS","BS",null,null,"BS","BS","BS"]
[686,6944,"Costa","Bruno","TFC Wiebelskirchen","BS","BS","BS","BS",null,"BS","BS","BS",null,"BS","BS","BS","BS"]
[687,6949,"Meiser","Sven","TFC Bliesen","BN,2","BN,2","BN,2","BN,2",null,"BN,2","BN,2","BN,2","BN,2","BN,2","BN,2","BN,2","BN,2"]
[688,6982,"Cupelli","Luca","TFC Wiebelskirchen","BS","BS","BS","BS","BS","BS","BS","BS",null,"BS","BS","BS","BS"]
[689,7020,"Becker","Kevin","TFC Roden",null,null,null,null,null,"LL,1"]
[690,7025,"Flach","Stefanie","TFC Bliesen",null,"KN,3","KN,3","KN,3","KN,3","KN,3","KN,3","KN,3","KN,3",null,"KN,3","KN,3","KN,3"]
[691,7034,"Alaimo","Michele","TFC Wiebelskirchen","BS",null,"BS","BS",null,"BS",null,"BS",null,"BS",null,"BS","BS"]
[692,7037,"Hübschen","Manuela","RC Tholey",null,null,null,null,null,null,"BN",null,"BN","BN"]
[693,7056,"Wommer","Dennis","TFC Hühnerfeld","BS,1","BS,1","BS,1","BS,1","BS,1","BS,1","BS,1","BS,1","BS,1","BS,1",null,"BS,1","BS,1"]
[694,7060,"Schmitz","Tonino","RC Berschweiler","KN","KN","KN","KN",null,null,"KN","KN","KN",null,"KN",null,"KN"]
[695,7061,"Groß","Rafael","RC Tholey",null,null,null,null,null,"BN",null,"BN"]
[696,7066,"Hector","Sascha","TFC Frankenholz","BS","BS","BS","BS","BS",null,"BS","BS","BS","BS",null,"BS","BS"]
[697,7069,"Bentz","Jürgen","TFC Lautenbach","VL,1","VL,1","VL,1","VL,1","VL,1","VL,1","VL,1","VL,1","VL,1",null,"VL,1","VL,1","VL,1"]
[698,7092,"Weiß","Jörg","OTC Ottweiler","KS,2","KS,2","KS,2","KS,2","KS,2","KS,2","KS,2","KS,2","KS,2",null,null,"KS,2","KS,2"]
[699,7096,"Jung","Matthias","TFC Hühnerfeld","BS,1",null,"BS,1","BS,1","BS,1","BS,1","BS,1",null,null,null,"BS,1","BS,1","BS,1"]
[700,7097,"Haubert","Mike","TFC Wahlen","KN","KN","KN",null,"KN",null,null,null,"KN","KN","KN","KN"]
[701,7109,"Denzer","Hans-Werner","TFC Frankenholz",null,null,null,null,null,"BS",null,null,"BS",null,null,"BS","BS"]
[702,7116,"Holtz","Christian","TFC Frankenholz",null,null,null,null,null,null,null,null,"BS"]
[703,7132,"Schulz","Stefan","TFC Frankenholz","BS","BS",null,"BS","BS","BS","BS","BS","BS","BS","BS","BS"]
[704,7166,"Timmig","Michael","TFC Roden","LL,1","LL,1","LL,1","LL,1","LL,1","LL,1","LL,1","LL,1","LL,1",null,"LL,1","LL,1","LL,1"]
[705,7174,"Deutscher","Michael","TFC Frankenholz","BS","BS","BS","BS","BS","BS","BS","BS","BS","BS",null,"BS","BS"]
[706,7177,"Backes","Ralf","TFC Hühnerfeld","KS,2","KS,2","BS,1",null,"KS,2",null,"KS,2","KS,2",null,"KS,2","KS,2",null,"KS,2"]
[707,7178,"Bäumer","Dennis","TFC Braddock Burbach",null,null,null,null,null,"VL,2","VL,2","VL,2",null,"VL,2"]
[708,7180,"Oster","Pascal","TFC Roden","LL,1","LL,1","LL,1","LL,1","LL,1","LL,1","LL,1","LL,1","LL,1",null,"LL,1","LL,1","LL,1"]
[709,7186,"Müller","Stefan","TFC Roden",null,null,null,null,null,null,null,null,null,null,null,null,"BN,2"]
[710,7200,"Fuchs","Jannik","TFC Hülzweiler/Saarwellingen","VL,2","VL,2","LL,1","LL,1","LL,1","LL,1","LL,1","LL,1","LL,1","LL,1",null,"LL,1","LL,1"]
[711,7202,"Brunet","Steven","TFC Braddock Burbach","LL,1","LL,1",null,"LL,1","LL,1","LL,1","LL,1","LL,1","LL,1","LL,1","LL,1","LL,1","LL,1"]
[712,7206,"Klesen","Jan","TFC Roden",null,null,null,null,"LL,1",null,null,"LL,1","LL,1"]
[713,7213,"Carrera","Marco","TFC Wiebelskirchen","BS","BS","BS","BS",null,null,null,"BS",null,"BS","BS","BS"]
[714,7221,"Edelbluth","Alexander","TFF Burbach",null,"LL",null,null,null,"LL",null,"LL",null,"LL","LL","LL","LL"]
[715,7224,"Blass","Fabian","TFC Roden",null,null,null,null,null,null,"BN,2",null,null,"BN,2","LL,1"]
[716,7230,"Köpfler","Joachim","TFC Rappweiler",null,null,null,null,null,null,null,null,null,null,null,null,"VL"]
[717,7237,"Maisch","Florian","TFC Hülzweiler/Saarwellingen","LL,1","VL,2","LL,1","LL,1","LL,1",null,"LL,1","LL,1","LL,1","LL,1","LL,1"]
[718,7240,"Göbel","Norman","TFC Roden","BN,2","LL,1","BN,2",null,"BN,2","BN,2","BN,2","BN,2","BN,2","BN,2",null,"BN,2","BN,2"]
[719,7244,"Zaza","Pacel","TFC Riegelsberg",null,"KN,2","KN,2",null,"KN,2","KN,2",null,"KN,2",null,"KN,2","KN,2",null,"KN,2"]
[720,7249,"Eideloth","Dieter","TFC Hühnerfeld","KS,2","KS,2","KS,2",null,"KS,2","KS,2","KS,2","KS,2",null,"KS,2","KS,2","KS,2","KS,2"]
[721,7259,"Meurer","Marco","Borussia Neunkirchen","VL","VL","VL","VL","VL","VL",null,"VL",null,null,"VL","VL","VL"]
[722,7270,"Malter","Marcus","RC Tholey",null,null,"BN",null,"BN","BN","BN","BN","BN","BN",null,"BN","BN"]
[723,7294,"Fuchs","Dirk","TFC Frankenholz",null,null,null,null,null,null,null,null,null,null,null,null,"BS"]
[724,7296,"Fuchs","Heike","TFC Frankenholz",null,null,null,null,null,null,null,null,null,null,null,null,"BS"]
[725,7306,"Jung","Uwe","TFC Remmesweiler",null,"BS","BS","BS","BS",null,"BS",null,null,"BS","BS","BS"]
[726,7308,"Andreicovici","Elmar","TFC Remmesweiler","BS",null,"BS","BS","BS","BS","BS","BS",null,null,"BS","BS","BS"]
[727,7326,"Schillo","Vanessa","TFC Wahlen",null,"KN","KN",null,"KN","KN",null,"KN",null,"KN","KN","KN"]
[728,7327,"Rolles","Christian","TFC Wahlen","KN","KN","KN",null,"KN",null,"KN",null,"KN","KN","KN"]
[729,7329,"Kollmann","Christoph","TFC Hülzweiler/Saarwellingen",null,null,null,null,null,"KN,3",null,null,null,"KN,3"]
[730,7339,"Swiderski","Steven","Borussia Neunkirchen",null,null,null,null,null,null,null,null,null,"VL"]
[731,7347,"Schäfer","Ingo","RC Hüttigweiler","KS","KS","KS","KS","KS","KS","KS","KS","KS","KS","KS","KS","KS"]
[732,7355,"Petrizik","Thomas","OTC Ottweiler",null,null,null,"LL,1"]
[733,7369,"Zell","Patrick","OTC Ottweiler",null,"LL,1","LL,1","LL,1","LL,1","LL,1",null,"LL,1","LL,1","LL,1",null,"LL,1","LL,1"]
[734,7372,"Hobick","Normen","TFC Wiebelskirchen","BS","BS",null,null,"BS","BS","BS","BS","BS",null,"BS","BS","BS"]
[735,7395,"Schulz","Kevin","TFC Frankenholz","BS","BS","BS","BS",null,"BS","BS","BS","BS","BS","BS","BS"]
[736,7397,"Wirtz","Bianca","TFC Schiffweiler","BS","BS","BS",null,"BS","BS",null,null,null,null,null,"BS"]
[737,7398,"Morgenstern","Michael","TFC Braddock Burbach","LL,1",null,"LL,1","LL,1","LL,1","LL,1","LL,1","LL,1"]
[738,7408,"Conrad","Boris","TFC Schiffweiler","BS","BS",null,null,"BS",null,null,null,null,null,null,"BS","BS"]
[739,7410,"Kuc","Marco","OTC Ottweiler","LL,1","LL,1","LL,1","LL,1","LL,1","LL,1","LL,1","LL,1","LL,1","LL,1",null,null,"LL,1"]
[740,7418,"Siliwanow","Thomas","TFC Bliesen","BN,2",null,"BN,2","BN,2","BN,2","BN,2",null,null,"BN,2","BN,2","BN,2","BN,2","BN,2"]
[741,7420,"Pütz","Pascal","TFC Heusweiler",null,"LL","LL","LL","LL","LL",null,"LL",null,"LL","LL","LL","LL"]
[742,7421,"Feuchtner","Christian","TFC Wiebelskirchen",null,null,null,"BS","BS","BS","BS",null,"BS","BS","BS","BS"]
[743,7430,"Schäfer","Stefan","RC Berschweiler","KN","KN","KN",null,null,"KN","KN",null,"KN","KN","KN","KN","KN"]
[744,7443,"Wirtz","Benjamin","TFC Schiffweiler","BS","BS","BS",null,"BS","BS",null,"BS",null,"BS"]
[745,7446,"Jochum","Klaus","TFC Riegelsberg","LL,1","KN,2","LL,1","KN,2",null,"LL,1",null,"KN,2","KN,2","KN,2","KN,2","LL,1","KN,2"]
[746,7452,"Barthel","Lisa","TFC Dynamo Neunkirchen","KS","KS","KS","KS","KS","KS","KS","KS","KS","KS","KS","KS","KS"]
[747,7469,"Fries","Maik","TFC Rappweiler","VL","VL","VL","VL","VL",null,"VL","VL","VL","VL","VL","VL","VL"]
[748,7470,"Fries","Burkhard","TFC Rappweiler","VL","VL","VL","VL","VL",null,"VL","VL","VL","VL","VL","VL"]
[749,7476,"Rauls","Christian","TFC Rappweiler","VL","VL",null,"VL",null,null,null,null,"VL","VL"]
[750,7484,"Schreiber","Uwe","TFC Hühnerfeld",null,"KS,2",null,"KS,2","KS,2",null,null,null,null,"KS,2","KS,2","KS,2"]
[751,7540,"Spaniol","Stefan","TFF Eppelborn","KN","KN","KN",null,"KN","KN","KN","KN",null,"KN","KN","KN","KN"]
[752,7544,"Pütz","Vanessa","TFC Heusweiler","LL","LL",null,null,null,"LL"]
[753,7553,"Giebel","Susan","TFC St. Wendel",null,null,null,null,null,null,"KN",null,"KN",null,null,"KN","KN"]
[754,7556,"Grün","Dennis","TFC Frankenholz",null,"BS","BS",null,"BS","BS",null,"BS",null,null,null,"BS","BS"]
[755,7557,"Maurer","Manuel","TFC Heinitz/Elversberg","VL,1","VL,1","VL,1","VL,1","VL,1","VL,1",null,"VL,1","VL,1","VL,1","VL,1"]
[756,7573,"Wobido","Frank","TFC Ommersheim",null,null,null,null,null,null,null,null,null,null,null,"BS"]
[757,7583,"Ließfeld","Dominik","Kickers Neunkirchen",null,"KS","KS",null,"KS"]
[758,7598,"Schneider","Christian","TFC Bliesen","BN,2","BN,2","BN,2","BN,2",null,"BN,2",null,"BN,2","BN,2","BN,2","BN,2","BN,2","BN,2"]
[759,7599,"Schneider","Michael","TFC Bliesen","BN,2","BN,2","BN,2","BN,2","BN,2","BN,2","BN,2","BN,2","BN,2","BN,2","BN,2","BN,2","BN,2"]
[760,7608,"Werle","Florian","TFG Neunkirchen","KS","KS","KS","KS",null,null,"KS","KS",null,"KS","KS","KS"]
[761,7617,"Schon","Carina","TFC Hülzweiler/Saarwellingen","KN,3"]
[762,7621,"Pontius","Dennis","TFC Hülzweiler/Saarwellingen","LL,1","LL,1","LL,1","LL,1","LL,1","LL,1","LL,1",null,"LL,1",null,"LL,1","LL,1","LL,1"]
[763,7625,"Winkle","Stefanie","TFC Heinitz/Elversberg","KS,2","KS,2","KS,2",null,"KS,2","KS,2",null,null,null,null,"KS,2"]
[764,7628,"Heckmann","Peter","TFK Schwalbach","BN","BN","BN","BN","BN","BN","BN","BN","BN","BN","BN","BN","BN"]
[765,7630,"Kraus","Patrick","TFK Schwalbach","BN","BN","BN","BN","BN","BN","BN","BN","BN","BN",null,"BN","BN"]
[766,7632,"Grenner","Klaus","RC Berschweiler",null,"KN",null,null,null,null,null,null,null,null,null,null,"KN"]
[767,7643,"Rode","Robin","TFC Braddock Burbach","VL,2","VL,2","VL,2","VL,2","VL,2",null,null,null,null,null,null,"VL,2","VL,2"]
[768,7644,"Sell","Frank","TFC Hühnerfeld",null,"KS,2",null,"KS,2",null,"KS,2",null,"KS,2"]
[769,7645,"Siebertz","Michael","TFC Hülzweiler/Saarwellingen",null,null,null,null,"LL,1",null,null,null,null,"LL,1",null,null,"LL,1"]
[770,7660,"Birk","Sebastian","TFC Roden","BN,2",null,"BN,2",null,null,"BN,2","BN,2","BN,2",null,"BN,2","BN,2",null,"BN,2"]
[771,7661,"Glasen","Jörg","TFC Roden","LL,1","LL,1","LL,1","LL,1","LL,1","LL,1","LL,1","LL,1","LL,1","LL,1","LL,1","LL,1","LL,1"]
[772,7666,"Spaniol","Melanie","TFC Schiffweiler",null,null,null,null,null,null,null,null,null,null,"BS","BS","BS"]
[773,7668,"Kohlbauer","Bernd","TFC Lautenbach","VL,1","VL,1","VL,1","VL,1","VL,1","VL,1","VL,1","VL,1",null,"VL,1","VL,1",null,"VL,1"]
[774,7677,"De Giorgio","Domenico","TFC Wiebelskirchen",null,"BS","BS",null,"BS",null,"BS",null,"BS","BS"]
[775,7681,"Schmidt","Patrick","TFG Namborn","BS","BS","BS","BS","BS","BS","BS","BS","BS","BS","BS",null,"BS"]
[776,7695,"Göttert","Manfred","TFC Rappweiler","VL","VL","VL",null,"VL",null,null,"VL","VL","VL","VL","VL","VL"]
[777,7699,"Herrmann","Volker","TFC Roden","BN,2",null,"BN,2",null,"BN,2",null,"BN,2","BN,2","BN,2","BN,2","BN,2","BN,2","BN,2"]
[778,7700,"Reichardt","Sebastian","TFF Burbach","LL","LL","LL","LL","LL","LL","LL","LL","LL","LL","LL","LL","LL"]
[779,7704,"Becker","Heiko","TFC Rappweiler","VL","VL","VL","VL","VL",null,"VL","VL","VL","VL",null,"VL","VL"]
[780,7705,"Barbian","Thomas","TFC Limbach","BN","BN","BN","BN",null,null,null,"BN",null,null,"BN"]
[781,7707,"Maring","Markus","TFC Hülzweiler/Saarwellingen","VL,2","VL,2","VL,2","VL,2",null,"VL,2","VL,2","VL,2","VL,2","VL,2","VL,2",null,"VL,2"]
[782,7710,"Mohm","Christoph","TFC Rappweiler",null,null,null,null,"VL",null,"VL","VL","VL","VL","VL","VL","VL"]
[783,7713,"Carrera","Luigi","TFC Frankenholz",null,null,"BS","BS","BS","BS","BS","BS","BS",null,"BS"]
[784,7717,"Recktenwald","Melvin","TFC Remmesweiler","BS","BS","BS","BS","BS","BS","BS","BS",null,"BS","BS","BS","BS"]
[785,7730,"Hacket","Rainer","TFC Rappweiler",null,"VL","VL","VL","VL",null,"VL","VL",null,null,"VL",null,"VL"]
[786,7731,"Begic","Selma","TFK Schwalbach",null,null,"BN","BN","BN","BN","BN","BN","BN","BN","BN","BN","BN"]
[787,7735,"Klein","Sven","TFC Siersburg",null,null,"BN","BN","BN","BN",null,null,null,"BN"]
[788,7743,"Neusius","Manfred","TFC Roden",null,null,"BN,2",null,"BN,2",null,null,null,null,"BN,2","BN,2",null,"BN,2"]
[789,7750,"Pot","Steven","TFC Braddock Burbach","LL,1","LL,1","LL,1","LL,1","LL,1","LL,1","LL,1","LL,1","LL,1","LL,1","LL,1","LL,1","LL,1"]
[790,7756,"Klein","Jannik","TFC Hülzweiler/Saarwellingen",null,"VL,2",null,"VL,2","VL,2",null,null,null,null,"VL,2","VL,2","VL,2","VL,2"]
[791,7771,"Bitzel","Karsten","TFF Bexbach",null,null,null,null,"KS",null,"KS",null,null,"KS","KS","KS","KS"]
[792,7777,"Guillaume","Kevin","TFC Roden",null,"LL,1","LL,1","LL,1",null,"LL,1","LL,1","LL,1","LL,1",null,null,"LL,1"]
[793,7806,"Bilke","Marc","TFF Burbach","LL","LL","LL","LL","LL","LL","LL","LL","LL","LL","LL","LL","LL"]
[794,7808,"Feldes","Jannik","SG Spiesen","BS,2","BS,2","BS,2","BS,2","LL,1","BS,2","BS,2","BS,2","BS,2","BS,2","BS,2","BS,2","LL,1"]
[795,7817,"Oster","Sebastian","TFC Hülzweiler/Saarwellingen",null,null,"KN,3",null,"KN,3","KN,3",null,null,null,"KN,3",null,"KN,3","KN,3"]
[796,7830,"Schulien","Roger","TFC Rappweiler","VL","VL","VL","VL","VL",null,"VL","VL","VL","VL","VL","VL","VL"]
[797,7836,"Carrera","Giuseppe","TFC Wiebelskirchen","BS","BS","BS","BS","BS","BS",null,"BS","BS","BS","BS","BS"]
[798,7861,"Harig","Michael","TFC Wahlen","KN",null,null,null,null,"KN",null,null,null,"KN",null,"KN"]
[799,7862,"Gelzleichter","Stefan","TFC St. Wendel","KN",null,"KN","KN","KN",null,"KN","KN","KN",null,"KN","KN","KN"]
[800,7863,"Gelzleichter","Anja","TFC St. Wendel",null,"KN",null,null,null,null,null,"KN","KN",null,null,"KN"]
[801,7877,"Baum","Udo","TFF Bexbach","KS","KS","KS","KS","KS","KS","KS","KS","KS","KS","KS","KS","KS"]
[802,7885,"Zimmer","Hans-Georg","TFC Ommersheim",null,null,null,null,null,null,null,null,null,null,"BS","BS","BS"]
[803,7899,"Kaufmann","Dennis","TFC St. Wendel","KN","KN","KN","KN","KN",null,"KN","KN","KN","KN",null,"KN","KN"]
[804,7903,"Görgen","Franz-Josef","TFC Morscholz",null,null,null,null,null,"KN",null,null,"KN","KN",null,null,"KN"]
[805,7916,"Paulus","Patrick","Borussia Neunkirchen",null,null,null,null,null,null,"VL","VL",null,"VL","VL"]
[806,7927,"Carrera","Angelo Bruno","TFC Wiebelskirchen",null,"BS","BS",null,"BS","BS","BS","BS","BS",null,null,"BS","BS"]
[807,7932,"Schreiber","Tobias","TFF Eppelborn","KN","KN","KN","KN","KN","KN","KN","KN",null,"KN","KN","KN","KN"]
[808,7939,"Seebald","Sebastian","TFC Marpingen","VL","VL",null,null,"VL","VL",null,null,"VL","VL","VL","VL"]
[809,7953,"Gelzleichter","Marcel","TFC St. Wendel",null,null,"KN","KN","KN",null,"KN","KN","KN","KN","KN","KN","KN"]
[810,7962,"Langenfeld","Axel","TFC Schiffweiler",null,null,"BS","BS","BS",null,"BS",null,null,null,"BS","BS","BS"]
[811,7980,"Petrak","Robin","TFC Ommersheim","BS","BS",null,"BS",null,"BS","BS","BS","BS",null,null,null,"BS"]
[812,7984,"Schulz","Daniel","TFK Schwalbach","BN","BN","BN","BN","BN",null,"BN",null,"BN","BN","BN","BN","BN"]
[813,7988,"Timmig","Tommy","TFC Roden",null,null,null,null,null,null,null,null,null,null,"BN,2"]
[814,7990,"Ladwein","Bastian","TFC Blau Rot Ensdorf","BN","BN","BN","BN","BN","BN","BN","BN","BN","BN","BN"]
[815,7991,"Eiden","Björn","TFC Illingen","KN,2",null,"KN,2","KN,2","KN,2","KN,2","KN,2","KN,2","KN,2","KN,2",null,"KN,2","KN,2"]
[816,7996,"Schmidt","Jürgen","TFC Morscholz","KN","KN",null,"KN","KN","KN","KN",null,"KN","KN","KN",null,"KN"]
[817,7997,"Valerius","Arnold","TFG Namborn","BS","BS","BS",null,null,"BS",null,"BS",null,null,null,null,"BS"]
[818,8005,"Meyers","Steven","TFC Hühnerfeld","BS,1","BS,1","BS,1","BS,1","BS,1",null,"BS,1","BS,1","BS,1","BS,1","BS,1","BS,1","BS,1"]
[819,8006,"Reichardt","Rainer","TFC Hühnerfeld","KS,2","KS,2","KS,2","KS,2","KS,2","KS,2"]
[820,8007,"Tausend","Timo","TFF Burbach","LL",null,"LL","LL",null,"LL","LL","LL","LL","LL","LL","LL","LL"]
[821,8028,"Krämer","Christian","TFC Rappweiler",null,null,null,null,"VL"]
[822,8029,"Rosenkranz","Christian","TFC Illingen",null,null,"KN,2",null,"KN,2",null,"KN,2",null,null,"KN,2",null,"KN,2"]
[823,8033,"Moll","Dominik","TFC Rappweiler","VL","VL","VL","VL",null,null,"VL","VL","VL","VL","VL","VL"]
[824,8038,"Scheubeck","Rudi","TFG Neunkirchen",null,"KS","KS","KS"]
[825,8054,"Steffen","Jonny","TFC Braddock Burbach","LL,1","LL,1","LL,1","LL,1","LL,1","LL,1","LL,1",null,"LL,1","LL,1","LL,1","LL,1","LL,1"]
[826,8057,"Weber","Lars","Borussia Neunkirchen","VL","VL","VL",null,"VL",null,null,"VL",null,null,null,"VL"]
[827,8059,"Jung","Kai","TFC Braddock Burbach","VL,2","VL,2","VL,2","VL,2","VL,2",null,"VL,2",null,"VL,2",null,"LL,1",null,"VL,2"]
[828,8060,"Frey","Emil","TFC Heinitz/Elversberg","VL,1","VL,1","VL,1","VL,1","VL,1","VL,1","VL,1","VL,1",null,"VL,1","VL,1","VL,1","VL,1"]
[829,8068,"Paulus","Rudi","TFC Wahlen","KN","KN","KN",null,"KN","KN","KN","KN","KN","KN","KN","KN"]
[830,8075,"Meyer","Reinhard","TFC Morscholz",null,null,null,null,null,null,null,null,null,null,"KN"]
[831,8092,"Kaspar","Philipp","TFC Rappweiler",null,null,null,null,null,null,null,null,null,null,"VL","VL"]
[832,8094,"Otto","Sebastian","TFC Remmesweiler","BS","BS","BS","BS","BS","BS","BS","BS",null,"BS","BS","BS","BS"]
[833,8096,"Utzig","Helmut","TFC Bliesen","BN,2","BN,2","BN,2","BN,2","BN,2","BN,2","BN,2","BN,2","BN,2","BN,2","BN,2","BN,2","BN,2"]
[834,8099,"Altmeyer","Dennis","TFC Limbach","BN","BN","BN","BN","BN","BN","BN","BN","BN","BN","BN","BN","BN"]
[835,8103,"Zimmer","Kevin","TFC Roden","BN,2",null,"BN,2",null,"BN,2",null,"BN,2","BN,2","BN,2","LL,1",null,"BN,2","BN,2"]
[836,8119,"Eiden","Sven","TFC Illingen","KN,2",null,"KN,2","KN,2","KN,2","KN,2","KN,2","KN,2","KN,2","KN,2",null,"KN,2","KN,2"]
[837,8126,"Trockur","Christian","RC Berschweiler","KN",null,"KN",null,null,"KN","KN","KN","KN",null,"KN","KN","KN"]
[838,8132,"Schu","Hendrik","RC Tholey",null,null,null,null,null,null,null,"BN"]
[839,8162,"Hussong","Roland","TFF Bexbach","KS","KS","KS","KS","KS","KS","KS","KS",null,"KS","KS","KS","KS"]
[840,8164,"Schönig","Roland","RC Tholey",null,null,"BN",null,null,null,null,"BN",null,null,"BN","BN"]
[841,8169,"Spieldenner","Günther","TFC Limbach","BN","BN","BN","BN","BN","BN","BN","BN","BN",null,null,"BN","BN"]
[842,8179,"Neumann","Timo","TFC Lautenbach",null,"VL,1","VL,1",null,"VL,1","VL,1","VL,1","VL,1","VL,1","VL,1","VL,1",null,"VL,1"]
[843,8189,"Reuter","Felix","TFC Morscholz",null,null,null,null,null,"KN"]
[844,8191,"Gläser","Jana","TFC Bliesen",null,"KN,3","KN,3",null,null,null,null,"KN,3"]
[845,8202,"Feldmann","Felix","TFC Remmesweiler",null,null,null,null,null,"BS",null,null,null,null,"BS"]
[846,8205,"Collet","Tomas","TFC Riegelsberg","KN,2",null,null,"KN,2",null,null,null,"KN,2"]
[847,8209,"Naumann","Michael","TFC Rappweiler","VL","VL","VL","VL","VL",null,"VL","VL","VL","VL","VL","VL","VL"]
[848,8213,"Neuschwander","Rainer","TFC Frankenholz","BS","BS","BS",null,"BS","BS",null,null,"BS","BS",null,null,"BS"]
[849,8220,"Lesch","Kevin","TFC St. Wendel",null,null,null,null,"KN",null,"KN","KN",null,"KN","KN","KN"]
[850,8227,"Schaller","Rainer","RC Hüttigweiler",null,null,null,null,null,"KS",null,"KS","KS","KS",null,null,"KS"]
[851,8239,"Motz","Martin","TFC Roden","BN,2",null,"BN,2",null,"BN,2","BN,2",null,null,"BN,2","BN,2","BN,2"]
[852,8243,"Hoffmann","Heiko","TFC Roden",null,null,null,null,null,"BN,2","BN,2","BN,2",null,"BN,2","BN,2","BN,2","BN,2"]
[853,8245,"Backes","Christian","RC Tholey",null,"BN",null,null,null,null,null,null,null,null,null,"BN"]
[854,8247,"Drokur","Yannick","SG Spiesen","BS,2",null,"BS,2","BS,2","BS,2","BS,2",null,null,null,"BS,2",null,"BS,2","BS,2"]
[855,8248,"Oswald","Eric","TFC Siersburg","BN","BN",null,"BN","BN","BN","BN","BN",null,"BN",null,"BN"]
[856,8255,"Brunet","Cedric","TFC Braddock Burbach","LL,1","LL,1","LL,1","LL,1","LL,1","LL,1","LL,1","LL,1","LL,1","LL,1","LL,1","LL,1","LL,1"]
[857,8270,"Marquitz","Stefan","RC Berschweiler","KN","KN","KN","KN",null,"KN","KN","KN","KN","KN","KN"]
[858,8300,"Hettinger","Sascha","TFC Riegelsberg","LL,1","LL,1","LL,1","LL,1","LL,1",null,"LL,1","LL,1","LL,1",null,null,null,"LL,1"]
[859,8304,"Mancuso","Lucio","TFC Wahlen","KN","KN","KN",null,null,"KN","KN","KN",null,null,"KN"]
[860,8305,"Gerhardt","Daniela","TFC St. Wendel","KN","KN","KN","KN",null,null,"KN","KN","KN","KN",null,"KN","KN"]
[861,8312,"Chalabi","Mohamed","TFC Heinitz/Elversberg","KS,2","KS,2","KS,2","KS,2","KS,2","KS,2","KS,2",null,"KS,2",null,null,"KS,2"]
[862,8317,"Klaumann","Jens","RC Wustweiler",null,null,null,null,null,null,null,"BN"]
[863,8329,"Saß","Benjamin","TFC Braddock Burbach","LL,1","LL,1","LL,1","LL,1",null,"LL,1","LL,1","LL,1","LL,1","LL,1","LL,1","LL,1","LL,1"]
[864,8354,"Berndt","Philipp","TFC Ludweiler","VL","VL","VL","VL",null,"VL","VL","VL",null,null,"VL","VL"]
[865,8367,"Agro","Antonio","TFC Wiebelskirchen",null,"BS","BS","BS",null,null,"BS",null,"BS","BS",null,"BS","BS"]
[866,8370,"Serio","Alessandro","TFC Wiebelskirchen",null,"BS",null,null,null,null,"BS",null,"BS",null,null,null,"BS"]
[867,8375,"Becker","Alexander","OTC Ottweiler","LL,1","LL,1","LL,1","LL,1","LL,1","LL,1","LL,1","LL,1","LL,1","LL,1",null,"LL,1","LL,1"]
[868,8380,"Thome","Michael","TFC Wahlen","KN",null,"KN",null,"KN","KN","KN","KN","KN","KN","KN","KN"]
[869,8403,"Endres","Thomas","TFF Eppelborn",null,null,null,null,"KN","KN","KN",null,null,null,null,"KN"]
[870,8404,"Latz","Rene","TFC Siersburg","BN","BN","BN","BN","BN","BN","BN","BN","BN","BN","BN","BN"]
[871,8405,"Neu","Volker","TFC Dynamo Neunkirchen","KS",null,"KS","KS","KS",null,null,null,null,null,null,null,"KS"]
[872,8407,"Fürster","Daniel","TFC Hülzweiler/Saarwellingen",null,"KN,3","KN,3","KN,3","KN,3","KN,3","KN,3",null,"KN,3","KN,3","KN,3","KN,3","KN,3"]
[873,8408,"Madeo","Antonio","TFC Ommersheim","BS",null,"BS","BS","BS","BS","BS","BS","BS","BS","BS","BS","BS"]
[874,8415,"Backes","Arnold","RC Schiffweiler",null,null,null,"KS","KS","KS","KS","KS","KS","KS","KS",null,"KS",null,"KS"]
[875,8427,"Schorr","Bernhard","TFC Frankenholz",null,"BS",null,null,null,null,null,null,null,null,"BS"]
[876,8428,"Krämer","Stefanie","TFC Illingen","VL,1","VL,1",null,"VL,1","VL,1",null,"VL,1",null,"VL,1","VL,1",null,"VL,1"]
[877,8433,"Steig","Claudio","TFC Schiffweiler","BS","BS","BS","BS","BS","BS","BS","BS",null,"BS","BS","BS","BS"]
[878,8436,"Klass","Maurice","TFC Heinitz/Elversberg",null,"VL,1","VL,1","VL,1","VL,1","VL,1","VL,1","VL,1","VL,1","VL,1",null,"VL,1","VL,1"]
[879,8448,"Hansen","Kim","TFC Siersburg","BN"]
[880,8454,"Brusewitz","Olaf","TFC Morscholz","KN","KN",null,"KN","KN","KN","KN",null,"KN","KN","KN",null,"KN"]
[881,8467,"Bazin","Didier","TFG Namborn","BS","BS","BS","BS","BS","BS","BS","BS","BS","BS","BS","BS","BS"]
[882,8475,"Kutz","Natascha","TFC Schiffweiler",null,null,null,null,"BS"]
[883,8481,"Hopf","Martin","TFC Lautenbach",null,null,null,"KS,2","KS,2"]
[884,8489,"Kunkel","Nadine","TFC Hülzweiler/Saarwellingen","KN,3","KN,3","KN,3","KN,3",null,null,"KN,3",null,"KN,3","KN,3","KN,3",null,"KN,3"]
[885,8496,"Uhl","Peter","TFC Siersburg",null,null,null,null,null,null,"BN",null,null,null,null,"BN"]
[886,8498,"Fuß","Volker","TFC Siersburg",null,null,null,null,null,null,null,null,"BN"]
[887,8501,"Niemes","Marco","TFC Siersburg","BN","BN","BN","BN","BN",null,"BN","BN","BN","BN","BN","BN"]
[888,8504,"Schisler","Patrick","TFC Siersburg",null,"BN",null,null,"BN","BN","BN","BN","BN",null,"BN","BN"]
[889,8507,"Dauster","Sandra","TFC Siersburg",null,null,null,null,null,null,null,null,null,null,"BN"]
[890,8515,"Kiel","Fabio","TFC Riegelsberg",null,"LL,1",null,null,"LL,1",null,"LL,1","LL,1","LL,1",null,null,null,"LL,1"]
[891,8526,"Wagner","Frank","TFC Illingen","KN,2",null,"KN,2","KN,2","KN,2","KN,2",null,"KN,2","KN,2","KN,2",null,"KN,2","KN,2"]
[892,8528,"Alt","Thomas","Borussia Neunkirchen","VL",null,"VL",null,null,null,null,null,null,"VL","VL"]
[893,8529,"Wagner","Thomas","RC Hüttigweiler","KS","KS","KS","KS","KS","KS","KS","KS","KS","KS","KS","KS","KS"]
[894,8530,"Helf","Manfred","TFC Illingen","KN,2",null,null,"KN,2","KN,2","KN,2","KN,2","KN,2","KN,2","KN,2",null,"KN,2"]
[895,8536,"Plinius","Michael","TFC Ommersheim","BS","BS","BS","BS","BS","BS","BS","BS","BS","BS","BS"]
[896,8543,"Siebenborn","Christoph","TFC Siersburg",null,null,null,null,null,"BN","BN","BN","BN","BN","BN","BN"]
[897,8544,"Schmitt","Benjamin","TFC Wahlen","KN","KN","KN",null,"KN",null,"KN","KN",null,null,"KN","KN"]
[898,8549,"Philippi","Udo","TFF Bexbach","KS","KS","KS","KS","KS","KS",null,"KS","KS","KS","KS","KS"]
[899,8560,"Junker","Marc-Kevin","RC Tholey","BN","BN"]
[900,8562,"Debus","Maike","RC Tholey",null,null,"BN","BN","BN",null,"BN","BN","BN","BN","BN",null,"BN"]
[901,8623,"Schmitt","Dennis","TFC Bliesen",null,"BN,2","BN,2","BN,2","BN,2","BN,2","BN,2","BN,2","BN,2","BN,2","BN,2","BN,2","BN,2"]
[902,8644,"Angermeier","Manfred","TFC FriBi","BS","BS","BS","BS",null,"BS",null,"BS","BS","BS","BS","BS","BS"]
[903,8647,"Schumacher","Franz-Josef","RC Wustweiler","BN","BN","BN","BN","BN","BN","BN","BN",null,"BN","BN","BN","BN"]
[904,8657,"Müller","Max","TFC Ludweiler",null,null,null,"VL"]
[905,8680,"Wagner","Kerstin","TFC St. Wendel","KN","KN","KN",null,"KN",null,"KN",null,"KN","KN","KN","KN"]
[906,8681,"Trapp","Dennis","RC Wiesbach",null,"LL",null,"LL"]
[907,8697,"Gerber","Tim","TFF Marpingen","BN",null,null,"BN","BN",null,null,"BN",null,null,null,"BN","BN"]
[908,8714,"Kurz","Oliver","RC Schiffweiler",null,"KS","KS","KS",null,null,"KS","KS","KS","KS",null,"KS","KS",null,"KS"]
[909,8715,"Coppola","Pasquale","TFF Eppelborn","KN"]
[910,8716,"Alt","Klaus","TFF Eppelborn","KN","KN","KN","KN","KN","KN","KN","KN",null,"KN","KN","KN","KN"]
[911,8717,"Schwalbach","Justin","TFC Hülzweiler/Saarwellingen","LL,1","LL,1","LL,1","LL,1","LL,1","LL,1","LL,1","LL,1","LL,1","LL,1","LL,1","LL,1","LL,1"]
[912,8720,"Schmitt","Marco","TFC Siersburg","BN","BN","BN","BN","BN","BN","BN","BN","BN","BN",null,"BN"]
[913,8723,"Rauls","Kilian","TFC Rappweiler","VL","VL","VL","VL","VL",null,"VL","VL","VL","VL","VL",null,"VL"]
[914,8729,"Seitz","Lucas","TFC Lautenbach",null,null,null,null,null,null,null,"KS,2",null,"KS,2","KS,2","VL,1","VL,1"]
[915,8730,"Becker","Jürgen","TFC Hülzweiler/Saarwellingen",null,"KN,3","KN,3","KN,3","KN,3","KN,3","KN,3",null,"KN,3","KN,3","KN,3","KN,3"]
[916,8731,"Scherer","Philipp","TFC Wahlen",null,"KN","KN",null,"KN","KN","KN","KN","KN","KN","KN","KN"]
[917,8750,"Falk","Tim","TFC Siersburg","BN","BN","BN","BN","BN","BN","BN","BN","BN","BN","BN"]
[918,8753,"Lieblang","Robin","TFC Lautenbach","KS,2","KS,2","KS,2","KS,2","KS,2","KS,2","KS,2","KS,2","KS,2","KS,2","KS,2","KS,2","KS,2"]
[919,8764,"Messina","Elias","TFC Heinitz/Elversberg","VL,1","VL,1","VL,1","VL,1","VL,1","VL,1","VL,1","VL,1","VL,1","VL,1",null,"VL,1","VL,1"]
[920,8780,"Conrad","Jannik","TFC Hülzweiler/Saarwellingen","VL,2","VL,2","VL,2","VL,2","LL,1",null,"LL,1","LL,1",null,"LL,1","LL,1","LL,1","LL,1"]
[921,8781,"Reimann","Silas","OTC Ottweiler",null,null,"LL,1",null,"LL,1",null,null,null,"LL,1","LL,1",null,"LL,1"]
[922,8783,"Messemer","Mathias","TFC Hühnerfeld","KS,2","BS,1","KS,2","KS,2","KS,2","KS,2","KS,2",null,null,"KS,2","KS,2","KS,2","KS,2"]
[923,8796,"Bilke","Mirco","TFF Burbach","LL","LL","LL","LL","LL","LL","LL","LL","LL","LL","LL","LL","LL"]
[924,8799,"Schmidt","Steven","TFC Hülzweiler/Saarwellingen",null,null,null,null,"VL,2","VL,2","VL,2","VL,2","VL,2","VL,2","VL,2","VL,2","VL,2"]
[925,8801,"Bronder","Uwe","TFF Eppelborn","KN",null,null,"KN",null,null,null,null,null,"KN",null,"KN","KN"]
[926,8803,"Krapp","Detlef","TFC St. Wendel","KN","KN","KN","KN","KN",null,null,"KN","KN","KN","KN","KN","KN"]
[927,8811,"Violi","Manuel","TFC Schiffweiler","BS","BS","BS","BS","BS","BS","BS","BS",null,"BS","BS","BS"]
[928,8828,"Schneider","Andreas","TFC Lautenbach","KS,2","KS,2","KS,2","KS,2","KS,2","KS,2","KS,2","KS,2","KS,2","KS,2",null,"KS,2","KS,2"]
[929,8836,"Mohrbacher","Christof","TFC Lautenbach",null,null,null,null,null,null,null,"KS,2"]
[930,8839,"Bost","Christian","RC Wiesbach",null,null,null,null,null,"LL",null,"LL",null,null,null,"LL"]
[931,8842,"Hahn","Daniel","TFC Remmesweiler","BS",null,"BS","BS","BS","BS","BS","BS",null,null,"BS","BS","BS"]
[932,8854,"Schmidt","Vanessa","TFF Eppelborn","KN","KN","KN","KN","KN","KN","KN","KN",null,"KN","KN"]
[933,8870,"Detzler","Uwe","TFC Remmesweiler",null,null,null,null,null,null,null,null,null,null,"BS",null,"BS"]
[934,8881,"Veith","Joelle-Milaine","TFC Hülzweiler/Saarwellingen","KN,3",null,"KN,3","KN,3","KN,3","KN,3","KN,3",null,null,null,"KN,3","KN,3","KN,3"]
[935,8883,"Jung","Erich","RC Hüttigweiler","KS","KS","KS","KS",null,null,"KS","KS","KS","KS","KS","KS","KS"]
[936,8898,"Becker","Willi","TFC Hülzweiler/Saarwellingen","KN,3","KN,3","VL,2","KN,3","VL,2","VL,2","VL,2","VL,2","VL,2","VL,2","VL,2","VL,2"]
[937,8903,"Perius","Anna","TFC Hülzweiler/Saarwellingen","KN,3",null,"KN,3",null,"KN,3","KN,3",null,null,"KN,3","KN,3",null,"KN,3","KN,3"]
[938,8908,"Maas","Chiara","TFC Roden","BN,2"]
[939,8910,"Dolibois","Bernd","TFC Blau Rot Ensdorf",null,null,null,null,"BN","BN","BN","BN",null,"BN","BN","BN","BN"]
[940,8922,"Mang","Christian","SG Köllerbach",null,"BN",null,null,null,null,null,"BN","BN",null,null,null,"BN"]
[941,8923,"Engel","Christoph","TFC Riegelsberg",null,"KN,2","KN,2","KN,2","KN,2","KN,2",null,null,"KN,2","KN,2","KN,2","KN,2"]
[942,8924,"Weißhaar","Helen","TFC Hülzweiler/Saarwellingen","KN,3","KN,3","KN,3","KN,3",null,"KN,3",null,null,"KN,3","KN,3","KN,3",null,"KN,3"]
[943,8931,"Haßtenteufel","Peter","RC Schiffweiler","KS","KS","KS","KS","KS","KS","KS","KS","KS","KS","KS","KS","KS",null,"KS"]
[944,8950,"Lauck","Angelo","TFC Hühnerfeld","KS,2",null,"KS,2","KS,2",null,null,"KS,2",null,"KS,2","KS,2","KS,2",null,"KS,2"]
[945,8957,"Boßlet","Dirk","TFC Riegelsberg",null,"KN,2","KN,2","LL,1","KN,2","KN,2",null,"KN,2","KN,2","KN,2","KN,2","KN,2","KN,2"]
[946,8958,"Lauer","Timo","RC Wustweiler","BN","BN","BN","BN","BN","BN",null,"BN"]
[947,8969,"Lösch","Thomas","TFC Limbach","BN","BN",null,null,"BN","BN",null,null,"BN"]
[948,8971,"Klein","Dominik","TFC Siersburg",null,null,null,null,"BN",null,null,null,null,null,"BN"]
[949,8978,"Klein","Christian","TFC Frankenholz","BS","BS","BS","BS","BS","BS","BS","BS","BS",null,"BS","BS","BS"]
[950,8981,"Korb","Arkascha","TFG Namborn","BS",null,"BS","BS","BS","BS","BS","BS","BS","BS","BS",null,"BS"]
[951,8991,"Köbrich","Hans-Jürgen","TFC FriBi","BS",null,"BS","BS",null,null,"BS","BS","BS","BS","BS"]
[952,9006,"Coppola","Michelle","TFF Eppelborn","KN","KN","KN","KN","KN","KN",null,null,null,"KN","KN","KN","KN"]
[953,9014,"Becker","Robin","TFC Hülzweiler/Saarwellingen","KN,3",null,"KN,3","KN,3","VL,2","VL,2","VL,2","VL,2","VL,2","VL,2",null,null,"VL,2"]
[954,9020,"Lang","Lars Julian","TFC Lautenbach","KS,2",null,"KS,2","KS,2","KS,2",null,"KS,2",null,"KS,2","KS,2","KS,2",null,"KS,2"]
[955,9021,"Meyer","Jörg","TFC Lautenbach",null,null,null,"KS,2","KS,2",null,"KS,2","KS,2","KS,2","KS,2","KS,2"]
[956,9022,"Noß","Vanessa","RC Tholey","BN"]
[957,9026,"Wolf","Kai","TFC Roden","BN,2",null,null,null,"BN,2",null,"BN,2",null,"BN,2","LL,1","BN,2","BN,2"]
[958,9045,"Schon","Ronny","TFC Hülzweiler/Saarwellingen","KN,3","KN,3","KN,3","KN,3","KN,3","KN,3","KN,3",null,"KN,3",null,"KN,3","KN,3"]
[959,9051,"Weber","Tom","TFC Siersburg","BN","BN","BN","BN","BN","BN",null,"BN","BN","BN","BN","BN"]
[960,9052,"Manzone","Alessandro","TFC Riegelsberg","LL,1","LL,1","LL,1","LL,1","LL,1","LL,1","LL,1","LL,1","LL,1",null,null,"LL,1"]
[961,9054,"Urschel","Dariusz","TFF Burbach","LL","LL","LL","LL","LL","LL","LL","LL","LL",null,"LL","LL","LL"]
[962,9056,"Wilms","Sarah","TFG Namborn",null,null,null,null,null,"BS","BS",null,"BS",null,null,"BS","BS"]
[963,9058,"Dörr","Alexander","SG Köllerbach","BN","BN","BN",null,"BN","BN","BN","BN","BN","BN","BN","BN","BN"]
[964,9059,"Gödecke","Robert","SG Köllerbach","BN","BN","BN","BN","BN","BN","BN","BN","BN","BN","BN","BN","BN"]
[965,9066,"Brendel","Manuel","TFC Lautenbach","KS,2","KS,2","KS,2","KS,2","KS,2","KS,2","KS,2","KS,2","KS,2","KS,2","KS,2","KS,2"]
[966,9073,"Finkler","Sascha","TFC Riegelsberg","KN,2",null,null,null,null,null,null,null,null,null,null,"KN,2"]
[967,9084,"Oestreich","Yannic","RC Tholey","BN","BN","BN","BN","BN","BN","BN","BN","BN",null,"BN","BN","BN"]
[968,9085,"Haupert","Nico","TFC Roden",null,null,null,null,"LL,1","LL,1","LL,1","LL,1","LL,1","LL,1",null,"LL,1","LL,1"]
[969,9087,"Welsch","Theo","TFC Ommersheim","BS","BS","BS",null,"BS",null,null,null,"BS","BS","BS",null,"BS"]
[970,9089,"Meyer","Stefan","TFC Theley",null,"VL","VL","VL","VL",null,"VL","VL","VL","VL",null,"VL","VL"]
[971,9091,"Raspel","Frank","TFC Siersburg",null,null,"BN",null,null,null,"BN",null,"BN","BN","BN","BN"]
[972,9093,"Gräber","Roland","TFC Morscholz","KN","KN",null,"KN","KN","KN","KN",null,"KN","KN","KN",null,"KN"]
[973,9094,"Hinsberger","Johannes","TFC Bliesen","BN,2","BN,2","BN,2","BN,2","BN,2","BN,2","BN,2","BN,2","BN,2","BN,2","BN,2","BN,2","BN,2"]
[974,9102,"Faßbender","Noah","RC Tholey","BN","BN","BN","BN","BN","BN",null,"BN",null,"BN",null,"BN"]
[975,9103,"Huck","Rafael","RC Tholey",null,"BN",null,null,"BN",null,null,null,null,null,"BN","BN","BN"]
[976,9107,"Fuchs","Hans-Joachim","TFC Dynamo Neunkirchen","KS","KS","KS","KS","KS"]
[977,9111,"Müller","Denise","TFC Hülzweiler/Saarwellingen","KN,3","KN,3",null,null,"KN,3",null,"KN,3",null,null,"KN,3"]
[978,9112,"Cichon","Victoria","TFC Hülzweiler/Saarwellingen","KN,3",null,"KN,3","KN,3","KN,3","KN,3","KN,3",null,null,"KN,3",null,"KN,3","KN,3"]
[979,9117,"Friedrich","Steven","TFK Schwalbach",null,null,null,null,null,null,null,"BN",null,"BN","BN","BN","BN"]
[980,9119,"Wilbert","Bianca","TFC Schiffweiler",null,null,null,null,null,null,null,null,null,"BS"]
[981,9121,"Ternes","Kerstin","TFC Morscholz","KN",null,null,null,null,null,null,null,null,null,"KN"]
[982,9130,"Manzone","Giovanni","TFC Riegelsberg","LL,1","LL,1",null,"LL,1","LL,1","LL,1","LL,1","LL,1","LL,1",null,null,"LL,1","LL,1"]
[983,9137,"Klajmon","Piotr","TFC Rappweiler",null,null,null,null,null,null,null,null,"VL"]
[984,9143,"Madeo","Nevio","TFC Ommersheim","BS",null,"BS","BS","BS","BS","BS","BS","BS","BS",null,"BS","BS"]
[985,9144,"Sfragaro","Marcello","TFF Bexbach","KS","KS","KS","KS",null,"KS","KS","KS","KS"]
[986,9145,"Arend","Sebastian","TFC Morscholz",null,null,null,null,null,null,null,null,null,null,"KN"]
[987,9153,"Thome","Nils","TFC Remmesweiler","BS","BS","BS","BS"]
[988,9154,"Selzer","Georg","TFC Roden",null,null,"BN,2",null,"BN,2","BN,2","BN,2","BN,2","BN,2","BN,2","BN,2","BN,2","BN,2"]
[989,9156,"Rammo","Albert","SG Spiesen",null,"BS,2","BS,2","BS,2","BS,2","BS,2","BS,2","BS,2","BS,2","BS,2","BS,2","BS,2"]
[990,9164,"Sommer","Steffen","TFF Bexbach","KS","KS","KS","KS","KS","KS","KS","KS","KS","KS","KS","KS"]
[991,9165,"Haliszczak","Raphael","TFF Bexbach","KS","KS","KS",null,"KS","KS","KS","KS","KS",null,"KS","KS","KS"]
[992,9166,"Spies","Christopher","TFF Bexbach","KS","KS","KS","KS","KS","KS","KS","KS","KS","KS","KS","KS","KS"]
[993,9175,"Hoyer","Emelie","TFC Dynamo Neunkirchen",null,null,null,null,null,null,null,"KS",null,null,"KS"]
[994,9176,"Michaely","Thomas","TFC Dynamo Neunkirchen","KS","KS",null,"KS","KS","KS","KS",null,"KS","KS","KS","KS","KS"]
[995,9177,"Herrmüller","Cornelia","TFC Dynamo Neunkirchen","KS","KS","KS","KS","KS","KS","KS",null,"KS","KS","KS","KS","KS"]
[996,9178,"Koch","Bruno","TFC Dynamo Neunkirchen",null,"KS",null,null,"KS",null,"KS",null,"KS","KS","KS","KS","KS"]
[997,9179,"Schnur","Till","TFC Morscholz","KN",null,null,"KN","KN","KN","KN",null,"KN","KN","KN",null,"KN"]
[998,9184,"Zacharopoulos","Nicolas","TFG Namborn","BS","BS","BS","BS","BS","BS","BS",null,"BS","BS","BS","BS","BS"]
[999,9185,"Zacharopoulos","Alexander","TFG Namborn","BS","BS","BS","BS","BS","BS","BS","BS","BS","BS","BS","BS","BS"]
[1000,9189,"Thome","Dennis","TFC Schiffweiler","BS",null,null,"BS",null,null,null,"BS"]
[1001,9191,"Beenen","Thilo","TFC Riegelsberg","KN,2","KN,2","KN,2","LL,1","KN,2","KN,2",null,null,"KN,2","KN,2","KN,2","KN,2","KN,2"]
[1002,9195,"Salm","Johannes","TFC Roden","BN,2",null,"LL,1","LL,1","LL,1",null,null,null,"LL,1","LL,1","LL,1","LL,1","LL,1"]
[1003,9200,"Nau","Florian","TFC Lautenbach","KS,2",null,null,null,null,"KS,2",null,null,null,null,"KS,2","KS,2"]
[1004,9201,"Gräber","Sandra","TFC Illingen",null,null,"KN,2",null,"KN,2",null,"KN,2","KN,2","KN,2"]
[1005,9206,"Ruffing","Marius","Borussia Neunkirchen",null,null,null,null,null,null,null,null,null,null,null,null,"VL"]
[1006,9208,"Zaccharopoulos","Laura","TFG Namborn",null,"BS",null,null,null,null,"BS","BS",null,"BS",null,"BS","BS"]
[1007,9210,"Albert","Leon","TFC Bliesen",null,"KN,3","KN,3","KN,3","KN,3","KN,3","KN,3","KN,3","KN,3",null,null,"KN,3","KN,3"]
[1008,9211,"Zaccharopoulos","Matthias","TFG Namborn",null,null,null,null,null,"BS",null,null,null,"BS","BS","BS"]
[1009,9212,"Fuchs","Michelle","TFC Bliesen",null,"BN,2","BN,2","BN,2","BN,2","BN,2","BN,2","BN,2","BN,2","BN,2",null,"BN,2","BN,2"]
[1010,9214,"Waschbusch","Michael","TFC Hülzweiler/Saarwellingen","KN,3","KN,3","KN,3",null,"KN,3","KN,3","KN,3",null,"KN,3","KN,3","KN,3","KN,3","KN,3"]
[1011,9215,"Reiter","Pascal","TFC Hülzweiler/Saarwellingen","VL,2","KN,3","VL,2","VL,2","VL,2","VL,2","VL,2","VL,2","VL,2","VL,2",null,"VL,2","VL,2"]
[1012,9216,"Becker","Lara Marie","TFC Hülzweiler/Saarwellingen",null,null,"KN,3","KN,3","KN,3","KN,3","KN,3",null,"KN,3","KN,3","KN,3","KN,3"]
[1013,9217,"Schwan","Luca","TFC Remmesweiler","BS","BS","BS","BS",null,"BS",null,"BS",null,"BS"]
[1014,9218,"Ney","Louis","TFC Hülzweiler/Saarwellingen","KN,3","KN,3","KN,3","KN,3","KN,3",null,"KN,3",null,"KN,3",null,"KN,3","KN,3"]
[1015,9220,"Grimmo","Sascha","TFC Hülzweiler/Saarwellingen","VL,2","KN,3","VL,2","VL,2","VL,2",null,"VL,2","VL,2","VL,2","VL,2","VL,2","VL,2","VL,2"]
[1016,9221,"Fuchs","Marvin","TFC Braddock Burbach",null,null,"VL,2","VL,2","VL,2","VL,2",null,null,null,null,null,"VL,2","VL,2"]
[1017,9222,"Rupp","Walter","TFC Hülzweiler/Saarwellingen",null,null,null,null,null,null,null,null,null,null,null,"KN,3"]
[1018,9224,"Simon","Patrick","TFC Siersburg","BN","BN","BN",null,"BN","BN",null,"BN","BN",null,"BN","BN"]
[1019,9225,"Willems","Artur","TFC Siersburg",null,null,null,"BN",null,"BN",null,null,null,null,null,"BN"]
[1020,9243,"Schäfer","Markus","RC Hüttigweiler","KS"]
[1021,9244,"Manzone","Pietro","TFC Riegelsberg","KN,2","KN,2",null,"KN,2","KN,2","KN,2",null,"KN,2",null,"KN,2",null,"KN,2","KN,2"]
[1022,9245,"Dörr","Eike","TFK Schwalbach","BN","BN","BN","BN","BN","BN",null,"BN","BN",null,"BN","BN","BN"]
[1023,9249,"Kaldi","Sham","TFK Schwalbach",null,null,null,null,null,null,"BN","BN"]
[1024,9250,"Semmt","Andreas","TFC Blau Rot Ensdorf","BN","BN","BN","BN","BN","BN","BN","BN","BN","BN","BN","BN","BN"]
[1025,9251,"Schriefl","Olaf","TFC Blau Rot Ensdorf","BN","BN","BN","BN","BN","BN",null,"BN","BN","BN","BN","BN","BN"]
[1026,9252,"Ecker","Bernhard","TFF Bexbach",null,null,null,null,null,null,null,"KS",null,"KS","KS","KS","KS"]
[1027,9253,"Schulien","Christian","TFC Wahlen",null,"KN"]
[1028,9256,"Brinner","Steffen","TFC St. Wendel",null,null,null,"KN",null,null,null,null,null,"KN","KN"]
[1029,9257,"Lauter","Ralph","TFC Wiebelskirchen","BS",null,"BS",null,null,"BS","BS",null,"BS",null,"BS"]
[1030,9260,"Jochum","Nico","TFC Bliesen",null,"KN,3","KN,3","KN,3","KN,3","KN,3",null,"KN,3",null,null,"KN,3","KN,3","KN,3"]
[1031,9261,"Gläser","Leni","TFC Bliesen",null,"KN,3","KN,3","KN,3","KN,3",null,"KN,3","KN,3","KN,3",null,"KN,3","KN,3","KN,3"]
[1032,9262,"Schmidt","Maya","TFC Bliesen",null,"KN,3","KN,3","KN,3","KN,3","KN,3","KN,3","KN,3","KN,3",null,"KN,3","KN,3","KN,3"]
[1033,9264,"Heyens","Jens","OTC Ottweiler","KS,2",null,"KS,2",null,"KS,2",null,"KS,2","KS,2","KS,2","KS,2",null,null,"KS,2"]
[1034,9265,"Volz","Torsten","TFC Dynamo Neunkirchen","KS","KS","KS","KS","KS","KS","KS","KS","KS","KS","KS","KS","KS"]
[1035,9266,"Wadenphul","Diana","TFC Dynamo Neunkirchen","KS",null,"KS","KS",null,null,"KS",null,"KS","KS","KS","KS"]
[1036,9267,"Heckmann","Lukas","TFC Bliesen",null,"KN,3","KN,3","KN,3","KN,3","KN,3","KN,3","KN,3","KN,3",null,"KN,3",null,"KN,3"]
[1037,9271,"Müller","Bernd","RC Berschweiler",null,"KN","KN",null,null,"KN",null,"KN","KN","KN","KN"]
[1038,9274,"Coppola","Marie","TFF Eppelborn",null,"KN","KN","KN","KN","KN","KN",null,null,"KN","KN","KN","KN"]
[1039,9276,"Schäfer","Manuel","TFC Schiffweiler",null,null,null,"BS",null,null,"BS",null,null,null,null,null,"BS"]
[1040,9277,"Lang","Maxime","RC Berschweiler",null,null,null,null,null,null,"KN","KN",null,"KN"]
[1041,9279,"Kühner","Patric","RC Berschweiler",null,null,null,null,null,null,null,"KN",null,"KN",null,"KN","KN"]
[1042,9280,"Büsgen","Ben","TFC Lautenbach",null,null,null,null,null,"KS,2",null,"KS,2",null,"KS,2",null,"KS,2","KS,2"]
[1043,9284,"Jung","Jean-luc","TFC Remmesweiler","BS","BS",null,null,null,null,null,null,null,"BS"]
[1044,9289,"Reiher","Bodo","TFC Roden","BN,2",null,"BN,2",null,"BN,2",null,"BN,2","BN,2","BN,2","BN,2","BN,2","BN,2","BN,2"]
[1045,9290,"Leinenbach","Jana","TFF Eppelborn","KN"]
[1046,9291,"Alt","Tobias","TFF Eppelborn","KN","KN",null,"KN","KN","KN","KN","KN",null,"KN","KN","KN"]
[1047,9294,"Braun","Mandy","TFC Hülzweiler/Saarwellingen",null,"KN,3",null,"KN,3","KN,3","KN,3","KN,3",null,"KN,3","KN,3","KN,3","KN,3","KN,3"]
[1048,9295,"Reinert","Dominik","TFC Hülzweiler/Saarwellingen",null,null,null,null,null,null,null,null,null,null,null,"KN,3","KN,3"]
[1049,9296,"Buschlinger","Lukas","OTC Ottweiler",null,"KS,2","KS,2","KS,2","KS,2","KS,2",null,"KS,2","KS,2","KS,2",null,"KS,2","KS,2"]
[1050,9297,"Stroppel","Michael","TFF Eppelborn",null,"KN","KN","KN","KN","KN","KN",null,null,null,"KN"]
[1051,9298,"Sieger","Björn","TFC Schiffweiler",null,null,null,null,"BS","BS","BS","BS",null,null,"BS","BS","BS"]
[1052,9301,"Keller","Valentin","TFC Remmesweiler",null,null,null,null,null,null,null,null,null,null,"BS",null,"BS"]
[1053,9303,"Sozanoff","Paul","TFC Blau Rot Ensdorf",null,null,null,null,null,null,null,null,null,"BN"]
[1054,9305,"Triem","Kevin","TFC Wiebelskirchen",null,null,null,null,null,null,null,null,null,null,null,null,"BS"]
[]
["Anzahl (variabler Filter)",null,null,null,null,{"$f":"SUBTOTAL(3,F7:F1061)","v":708},699,713,697,712,673,699,665,660,669,625,696,673,0,24,0,0,0,0,0,0,0,0,0,0,0]
["Es wurden keine Regelverstöße gemäß §5, Abs. 3, SPO festgestellt!"]